Workbook

Sheet Bảng Theo dõi Điểm số
B1: Nhập Điểm số của Bạn vào Đây
C3: Lớp | D3: Loại | E3: Mô tả | F3: Điểm
C4: Tiếng Pháp Hiện đại | D4: Bài tập về nhà | E4: Lịch sử Chiến Tranh Thế Giới II | F4: 80%
C5: Lập trình Nâng cao trong Java | D5: Giữa kỳ | F5: 75%
C6: Tiếng Tây Ban Nha | D6: Bài tập về nhà | F6: 50%
C7: Vật lý Lý thuyết | D7: Bài tập về nhà | F7: 95%
C8: Tiếng Pháp Hiện đại | D8: Bài tập về nhà | E8: Lịch sử Chiến tranh Thế giới I | F8: 90%
C9: Tiếng Pháp Hiện đại | D9: Bài tập về nhà | E9: Trang 30 - 41 | F9: 80%
C10: Bài luận | D10: Tiểu luận | E10: Bài luật thuyết phục | F10: 95%
C11: Toán học 1 | D11: Tiểu luận | E11: Trang 21 & 26 | F11: 80%
C12: Toán học 2 | D12: Bài tập về nhà | E12: Trang 15 & 18 | F12: 85%
C13: Toán học 1 | D13: Bài tập về nhà | E13: Trang 34 - 36 | F13: 80%
C14: Toán học 2 | D14: Bài kiểm tra | F14: 95%

Sheet Hiệu suất của bạn
B1: Hiệu suất của bạn
C3: Tổng cộng
C4: ="Số giờ: "&SUM(tblClasses[Giờ Tín chỉ]) -> Số giờ: 24 | D4: =AVERAGE(D7:D31) -> 81% | E4: =AVERAGE(E7:E31) -> 2.71 | F4: =SUM(F7:F31) -> 2.63 | G4: =IFERROR(HLOOKUP(D4,lstGPAMapping,2),"") -> B-
C6: Lớp | D6: % | E6: Điểm Trung bình | F6: Điểm trung bình theo trọng số | G6: Chữ cái | H6: Hiệu suất Tổng thể
C7: ='Tính toán'!C6 -> Tiếng Pháp Hiện đại | D7: ='Tính toán'!AL6 -> 83% | E7: ='Tính toán'!AM6 -> 3.00 | F7: =IFERROR(E7*'Thiết đặt'!D9/SUM(tblClasses[Giờ Tín chỉ]),"") -> 0.38 | G7: ='Tính toán'!AN6 -> B
C8: ='Tính toán'!C7 -> Vật lý Lý thuyết | D8: ='Tính toán'!AL7 -> 95% | E8: ='Tính toán'!AM7 -> 4.00 | F8: =IFERROR(E8*'Thiết đặt'!D10/SUM(tblClasses[Giờ Tín chỉ]),"") -> 0.50 | G8: ='Tính toán'!AN7 -> A
C9: ='Tính toán'!C8 -> Toán học 1 | D9: ='Tính toán'!AL8 -> 80% | E9: ='Tính toán'!AM8 -> 2.67 | F9: =IFERROR(E9*'Thiết đặt'!D11/SUM(tblClasses[Giờ Tín chỉ]),"") -> 0.45 | G9: ='Tính toán'!AN8 -> B-
C10: ='Tính toán'!C9 -> Toán học 2 | D10: ='Tính toán'!AL9 -> 89% | E10: ='Tính toán'!AM9 -> 3.33 | F10: =IFERROR(E10*'Thiết đặt'!D12/SUM(tblClasses[Giờ Tín chỉ]),"") -> 0.56 | G10: ='Tính toán'!AN9 -> B+
C11: ='Tính toán'!C10 -> Lập trình Nâng cao trong Java | D11: ='Tính toán'!AL10 -> 75% | E11: ='Tính toán'!AM10 -> 2.00 | F11: =IFERROR(E11*'Thiết đặt'!D13/SUM(tblClasses[Giờ Tín chỉ]),"") -> 0.42 | G11: ='Tính toán'!AN10 -> C
C12: ='Tính toán'!C11 -> Tiếng Tây Ban Nha | D12: ='Tính toán'!AL11 -> 50% | E12: ='Tính toán'!AM11 -> 0.00 | F12: =IFERROR(E12*'Thiết đặt'!D14/SUM(tblClasses[Giờ Tín chỉ]),"") -> 0.00 | G12: ='Tính toán'!AN11 -> F
C13: ='Tính toán'!C12 -> Bài luận | D13: ='Tính toán'!AL12 -> 95% | E13: ='Tính toán'!AM12 -> 4.00 | F13: =IFERROR(E13*'Thiết đặt'!D15/SUM(tblClasses[Giờ Tín chỉ]),"") -> 0.33 | G13: ='Tính toán'!AN12 -> A
C14: ='Tính toán'!C13 ->  | D14: ='Tính toán'!AL13 ->  | E14: ='Tính toán'!AM13 ->  | F14: =IFERROR(E14*'Thiết đặt'!D16/SUM(tblClasses[Giờ Tín chỉ]),"") ->  | G14: ='Tính toán'!AN13 -> 
C15: ='Tính toán'!C14 ->  | D15: ='Tính toán'!AL14 ->  | E15: ='Tính toán'!AM14 ->  | F15: =IFERROR(E15*'Thiết đặt'!D17/SUM(tblClasses[Giờ Tín chỉ]),"") ->  | G15: ='Tính toán'!AN14 -> 
C16: ='Tính toán'!C15 ->  | D16: ='Tính toán'!AL15 ->  | E16: ='Tính toán'!AM15 ->  | F16: =IFERROR(E16*'Thiết đặt'!D18/SUM(tblClasses[Giờ Tín chỉ]),"") ->  | G16: ='Tính toán'!AN15 -> 
C17: ='Tính toán'!C16 ->  | D17: ='Tính toán'!AL16 ->  | E17: ='Tính toán'!AM16 ->  | F17: =IFERROR(E17*'Thiết đặt'!D19/SUM(tblClasses[Giờ Tín chỉ]),"") ->  | G17: ='Tính toán'!AN16 -> 
C18: ='Tính toán'!C17 ->  | D18: ='Tính toán'!AL17 ->  | E18: ='Tính toán'!AM17 ->  | F18: =IFERROR(E18*'Thiết đặt'!D20/SUM(tblClasses[Giờ Tín chỉ]),"") ->  | G18: ='Tính toán'!AN17 -> 
C19: ='Tính toán'!C18 ->  | D19: ='Tính toán'!AL18 ->  | E19: ='Tính toán'!AM18 ->  | F19: =IFERROR(E19*'Thiết đặt'!D21/SUM(tblClasses[Giờ Tín chỉ]),"") ->  | G19: ='Tính toán'!AN18 -> 
C20: ='Tính toán'!C19 ->  | D20: ='Tính toán'!AL19 ->  | E20: ='Tính toán'!AM19 ->  | F20: =IFERROR(E20*'Thiết đặt'!D22/SUM(tblClasses[Giờ Tín chỉ]),"") ->  | G20: ='Tính toán'!AN19 -> 
C21: ='Tính toán'!C20 ->  | D21: ='Tính toán'!AL20 ->  | E21: ='Tính toán'!AM20 ->  | F21: =IFERROR(E21*'Thiết đặt'!D23/SUM(tblClasses[Giờ Tín chỉ]),"") ->  | G21: ='Tính toán'!AN20 -> 
C22: ='Tính toán'!C21 ->  | D22: ='Tính toán'!AL21 ->  | E22: ='Tính toán'!AM21 ->  | F22: =IFERROR(E22*'Thiết đặt'!D24/SUM(tblClasses[Giờ Tín chỉ]),"") ->  | G22: ='Tính toán'!AN21 -> 
C23: ='Tính toán'!C22 ->  | D23: ='Tính toán'!AL22 ->  | E23: ='Tính toán'!AM22 ->  | F23: =IFERROR(E23*'Thiết đặt'!D25/SUM(tblClasses[Giờ Tín chỉ]),"") ->  | G23: ='Tính toán'!AN22 -> 
C24: ='Tính toán'!C23 ->  | D24: ='Tính toán'!AL23 ->  | E24: ='Tính toán'!AM23 ->  | F24: =IFERROR(E24*'Thiết đặt'!D26/SUM(tblClasses[Giờ Tín chỉ]),"") ->  | G24: ='Tính toán'!AN23 -> 
C25: ='Tính toán'!C24 ->  | D25: ='Tính toán'!AL24 ->  | E25: ='Tính toán'!AM24 ->  | F25: =IFERROR(E25*'Thiết đặt'!D27/SUM(tblClasses[Giờ Tín chỉ]),"") ->  | G25: ='Tính toán'!AN24 -> 
C26: ='Tính toán'!C25 ->  | D26: ='Tính toán'!AL25 ->  | E26: ='Tính toán'!AM25 ->  | F26: =IFERROR(E26*'Thiết đặt'!D28/SUM(tblClasses[Giờ Tín chỉ]),"") ->  | G26: ='Tính toán'!AN25 -> 
C27: ='Tính toán'!C26 ->  | D27: ='Tính toán'!AL26 ->  | E27: ='Tính toán'!AM26 ->  | F27: =IFERROR(E27*'Thiết đặt'!D29/SUM(tblClasses[Giờ Tín chỉ]),"") ->  | G27: ='Tính toán'!AN26 -> 
C28: ='Tính toán'!C27 ->  | D28: ='Tính toán'!AL27 ->  | E28: ='Tính toán'!AM27 ->  | F28: =IFERROR(E28*'Thiết đặt'!D30/SUM(tblClasses[Giờ Tín chỉ]),"") ->  | G28: ='Tính toán'!AN27 -> 
C29: ='Tính toán'!C28 ->  | D29: ='Tính toán'!AL28 ->  | E29: ='Tính toán'!AM28 ->  | F29: =IFERROR(E29*'Thiết đặt'!D31/SUM(tblClasses[Giờ Tín chỉ]),"") ->  | G29: ='Tính toán'!AN28 -> 
C30: ='Tính toán'!C29 ->  | D30: ='Tính toán'!AL29 ->  | E30: ='Tính toán'!AM29 ->  | F30: =IFERROR(E30*'Thiết đặt'!D32/SUM(tblClasses[Giờ Tín chỉ]),"") ->  | G30: ='Tính toán'!AN29 -> 
C31: ='Tính toán'!C30 ->  | D31: ='Tính toán'!AL30 ->  | E31: ='Tính toán'!AM30 ->  | F31: =IFERROR(E31*'Thiết đặt'!D33/SUM(tblClasses[Giờ Tín chỉ]),"") ->  | G31: ='Tính toán'!AN30 -> 

Sheet Thiết đặt
B1: Thiết đặt
C2: Ánh xạ Điểm và Điểm trung bình
C3: Tỷ lệ phần trăm | D3: 0% | E3: 60% | F3: 63% | G3: 67% | H3: 70% | I3: 73% | J3: 77% | K3: 80% | L3: 83% | M3: 87% | N3: 90% | O3: 93% | P3: 97%
C4: Xếp loại Chữ cái | D4: F | E4: D- | F4: D | G4: D+ | H4: C- | I4: C | J4: C+ | K4: B- | L4: B | M4: B+ | N4: A- | O4: A | P4: A+
C5: Điểm Trung bình | D5: 0 | E5: 0.67 | F5: 1 | G5: 1.33 | H5: 1.67 | I5: 2 | J5: 2.33 | K5: 2.67 | L5: 3 | M5: 3.33 | N5: 3.67 | O5: 4 | P5: 4
C7: Điểm theo trọng số cho tới 25 lớp
C8: Lớp bạn tham gia | D8: Giờ Tín chỉ | E8: Bài tập về nhà | F8: Tiểu luận | G8: Bài kiểm tra | H8: Dự án | I8: Giữa kỳ | J8: Bài thi Cuối khóa | K8: Khác | L8: % Tổng cộng
C9: Tiếng Pháp Hiện đại | D9: 3.0 | E9: 10% | F9: 15% | G9: 15% | H9: 10% | I9: 20% | J9: 30% | L9: =SUM(tblClasses[[#This Row],[Bài tập về nhà]:[Khác]]) -> 100%
C10: Vật lý Lý thuyết | D10: 3.0 | E10: 15% | F10: 15% | G10: 10% | H10: 10% | I10: 15% | J10: 30% | K10: 5% | L10: =SUM(tblClasses[[#This Row],[Bài tập về nhà]:[Khác]]) -> 100%
C11: Toán học 1 | D11: 4.0 | E11: 10% | F11: 15% | G11: 15% | H11: 10% | I11: 20% | J11: 30% | L11: =SUM(tblClasses[[#This Row],[Bài tập về nhà]:[Khác]]) -> 100%
C12: Toán học 2 | D12: 4.0 | E12: 15% | F12: 15% | G12: 10% | H12: 10% | I12: 15% | J12: 30% | K12: 5% | L12: =SUM(tblClasses[[#This Row],[Bài tập về nhà]:[Khác]]) -> 100%
C13: Lập trình Nâng cao trong Java | D13: 5.0 | E13: 15% | F13: 15% | G13: 10% | H13: 10% | I13: 20% | J13: 30% | L13: =SUM(tblClasses[[#This Row],[Bài tập về nhà]:[Khác]]) -> 100%
C14: Tiếng Tây Ban Nha | D14: 3.0 | E14: 10% | F14: 15% | G14: 17% | H14: 13% | I14: 20% | J14: 20% | K14: 5% | L14: =SUM(tblClasses[[#This Row],[Bài tập về nhà]:[Khác]]) -> 100%
C15: Bài luận | D15: 2.0 | E15: 15% | F15: 15% | G15: 12% | H15: 15% | I15: 15% | J15: 25% | K15: 3% | L15: =SUM(tblClasses[[#This Row],[Bài tập về nhà]:[Khác]]) -> 100%

Sheet Tính toán (hidden)
B1: Các phép tính
C2: Trang tính này cung cấp tính toán cho sếp hạng & điểm trung bình của bạn và nên được để ẩn. Bất kỳ thay đổi nào đối với trang tính này có thể gây ra lỗi.
C4: Danh sách Lớp Hiện tại | D4: Điểm (trên 1) | AC4: Tính toán Đánh giá
C5: Lớp | D5: 1 | E5: 2 | F5: 3 | G5: 4 | H5: 5 | I5: 6 | J5: 7 | K5: 8 | L5: 9 | M5: 10 | N5: 11 | O5: 12 | P5: 13 | Q5: 14 | R5: 15 | S5: 16 | T5: 17 | U5: 18 | V5: 19 | W5: 20 | X5: 21 | Y5: 22 | Z5: 23 | AA5: 24 | AB5: 25 | AC5: =tblClasses[[#Headers],[Bài tập về nhà]] -> Bài tập về nhà | AD5: =tblClasses[[#Headers],[Tiểu luận]] -> Tiểu luận | AE5: =tblClasses[[#Headers],[Bài kiểm tra]] -> Bài kiểm tra | AF5: =tblClasses[[#Headers],[Dự án]] -> Dự án | AG5: =tblClasses[[#Headers],[Giữa kỳ]] -> Giữa kỳ | AH5: =tblClasses[[#Headers],[Bài thi Cuối khóa]] -> Bài thi Cuối khóa | AI5: =tblClasses[[#Headers],[Khác]] -> Khác | AJ5: Tổng cộng | AK5: Tổng cộng khả dĩ | AL5: Tổng cộng % | AM5: Điểm Xếp hạng | AN5: Xếp loại Chữ cái
C6: =IF('Thiết đặt'!C9="","",'Thiết đặt'!C9) -> Tiếng Pháp Hiện đại | D6: =IFERROR(INDEX(tblClassScores[],MATCH($C6:$C30&D$5:AB$5,'Tính toán'!$C$33:$C$657,0),4),"") -> 80% | E6: 90% | F6: 80% | AC6: =IFERROR(AVERAGEIFS(tblClassScores[Điểm],tblClassScores[Lớp],'Tính toán'!$C6,tblClassScores[Loại],'Tính toán'!AC$5)*'Thiết đặt'!E9,"") -> 0.08333333333 | AD6: =IFERROR(AVERAGEIFS(tblClassScores[Điểm],tblClassScores[Lớp],'Tính toán'!$C6,tblClassScores[Loại],'Tính toán'!AD$5)*'Thiết đặt'!F9,"") ->  | AE6: =IFERROR(AVERAGEIFS(tblClassScores[Điểm],tblClassScores[Lớp],'Tính toán'!$C6,tblClassScores[Loại],'Tính toán'!AE$5)*'Thiết đặt'!G9,"") ->  | AF6: =IFERROR(AVERAGEIFS(tblClassScores[Điểm],tblClassScores[Lớp],'Tính toán'!$C6,tblClassScores[Loại],'Tính toán'!AF$5)*'Thiết đặt'!H9,"") ->  | AG6: =IFERROR(AVERAGEIFS(tblClassScores[Điểm],tblClassScores[Lớp],'Tính toán'!$C6,tblClassScores[Loại],'Tính toán'!AG$5)*'Thiết đặt'!I9,"") ->  | AH6: =IFERROR(AVERAGEIFS(tblClassScores[Điểm],tblClassScores[Lớp],'Tính toán'!$C6,tblClassScores[Loại],'Tính toán'!AH$5)*'Thiết đặt'!J9,"") ->  | AI6: =IFERROR(AVERAGEIFS(tblClassScores[Điểm],tblClassScores[Lớp],'Tính toán'!$C6,tblClassScores[Loại],'Tính toán'!AI$5)*'Thiết đặt'!K9,"") ->  | AJ6: =SUM(AC6:AI6) -> 0.08333333333 | AK6: =SUMIFS('Thiết đặt'!E9:K9,'Tính toán'!AC6:AI6,">0") -> 0.1 | AL6: =IFERROR(AJ6/AK6,"") -> 83% | AM6: =IFERROR(HLOOKUP(AL6,lstGPAMapping,3),"") -> 3 | AN6: =IFERROR(HLOOKUP(AL6,lstGPAMapping,2),"") -> B
C7: =IF('Thiết đặt'!C10="","",'Thiết đặt'!C10) -> Vật lý Lý thuyết | D7: 95% | AC7: =IFERROR(AVERAGEIFS(tblClassScores[Điểm],tblClassScores[Lớp],'Tính toán'!$C7,tblClassScores[Loại],'Tính toán'!AC$5)*'Thiết đặt'!E10,"") -> 0.1425 | AD7: =IFERROR(AVERAGEIFS(tblClassScores[Điểm],tblClassScores[Lớp],'Tính toán'!$C7,tblClassScores[Loại],'Tính toán'!AD$5)*'Thiết đặt'!F10,"") ->  | AE7: =IFERROR(AVERAGEIFS(tblClassScores[Điểm],tblClassScores[Lớp],'Tính toán'!$C7,tblClassScores[Loại],'Tính toán'!AE$5)*'Thiết đặt'!G10,"") ->  | AF7: =IFERROR(AVERAGEIFS(tblClassScores[Điểm],tblClassScores[Lớp],'Tính toán'!$C7,tblClassScores[Loại],'Tính toán'!AF$5)*'Thiết đặt'!H10,"") ->  | AG7: =IFERROR(AVERAGEIFS(tblClassScores[Điểm],tblClassScores[Lớp],'Tính toán'!$C7,tblClassScores[Loại],'Tính toán'!AG$5)*'Thiết đặt'!I10,"") ->  | AH7: =IFERROR(AVERAGEIFS(tblClassScores[Điểm],tblClassScores[Lớp],'Tính toán'!$C7,tblClassScores[Loại],'Tính toán'!AH$5)*'Thiết đặt'!J10,"") ->  | AI7: =IFERROR(AVERAGEIFS(tblClassScores[Điểm],tblClassScores[Lớp],'Tính toán'!$C7,tblClassScores[Loại],'Tính toán'!AI$5)*'Thiết đặt'!K10,"") ->  | AJ7: =SUM(AC7:AI7) -> 0.1425 | AK7: =SUMIFS('Thiết đặt'!E10:K10,'Tính toán'!AC7:AI7,">0") -> 0.15 | AL7: =IFERROR(AJ7/AK7,"") -> 95% | AM7: 4 | AN7: A
C8: =IF('Thiết đặt'!C11="","",'Thiết đặt'!C11) -> Toán học 1 | D8: 80% | E8: 80% | AC8: =IFERROR(AVERAGEIFS(tblClassScores[Điểm],tblClassScores[Lớp],'Tính toán'!$C8,tblClassScores[Loại],'Tính toán'!AC$5)*'Thiết đặt'!E11,"") -> 0.08 | AD8: =IFERROR(AVERAGEIFS(tblClassScores[Điểm],tblClassScores[Lớp],'Tính toán'!$C8,tblClassScores[Loại],'Tính toán'!AD$5)*'Thiết đặt'!F11,"") -> 0.12 | AE8: =IFERROR(AVERAGEIFS(tblClassScores[Điểm],tblClassScores[Lớp],'Tính toán'!$C8,tblClassScores[Loại],'Tính toán'!AE$5)*'Thiết đặt'!G11,"") ->  | AF8: =IFERROR(AVERAGEIFS(tblClassScores[Điểm],tblClassScores[Lớp],'Tính toán'!$C8,tblClassScores[Loại],'Tính toán'!AF$5)*'Thiết đặt'!H11,"") ->  | AG8: =IFERROR(AVERAGEIFS(tblClassScores[Điểm],tblClassScores[Lớp],'Tính toán'!$C8,tblClassScores[Loại],'Tính toán'!AG$5)*'Thiết đặt'!I11,"") ->  | AH8: =IFERROR(AVERAGEIFS(tblClassScores[Điểm],tblClassScores[Lớp],'Tính toán'!$C8,tblClassScores[Loại],'Tính toán'!AH$5)*'Thiết đặt'!J11,"") ->  | AI8: =IFERROR(AVERAGEIFS(tblClassScores[Điểm],tblClassScores[Lớp],'Tính toán'!$C8,tblClassScores[Loại],'Tính toán'!AI$5)*'Thiết đặt'!K11,"") ->  | AJ8: 0.2 | AK8: =SUMIFS('Thiết đặt'!E11:K11,'Tính toán'!AC8:AI8,">0") -> 0.25 | AL8: 80% | AM8: 2.67 | AN8: B-
C9: =IF('Thiết đặt'!C12="","",'Thiết đặt'!C12) -> Toán học 2 | D9: 85% | E9: 95% | AC9: =IFERROR(AVERAGEIFS(tblClassScores[Điểm],tblClassScores[Lớp],'Tính toán'!$C9,tblClassScores[Loại],'Tính toán'!AC$5)*'Thiết đặt'!E12,"") -> 0.1275 | AD9: =IFERROR(AVERAGEIFS(tblClassScores[Điểm],tblClassScores[Lớp],'Tính toán'!$C9,tblClassScores[Loại],'Tính toán'!AD$5)*'Thiết đặt'!F12,"") ->  | AE9: =IFERROR(AVERAGEIFS(tblClassScores[Điểm],tblClassScores[Lớp],'Tính toán'!$C9,tblClassScores[Loại],'Tính toán'!AE$5)*'Thiết đặt'!G12,"") -> 0.095 | AF9: =IFERROR(AVERAGEIFS(tblClassScores[Điểm],tblClassScores[Lớp],'Tính toán'!$C9,tblClassScores[Loại],'Tính toán'!AF$5)*'Thiết đặt'!H12,"") ->  | AG9: =IFERROR(AVERAGEIFS(tblClassScores[Điểm],tblClassScores[Lớp],'Tính toán'!$C9,tblClassScores[Loại],'Tính toán'!AG$5)*'Thiết đặt'!I12,"") ->  | AH9: =IFERROR(AVERAGEIFS(tblClassScores[Điểm],tblClassScores[Lớp],'Tính toán'!$C9,tblClassScores[Loại],'Tính toán'!AH$5)*'Thiết đặt'!J12,"") ->  | AI9: =IFERROR(AVERAGEIFS(tblClassScores[Điểm],tblClassScores[Lớp],'Tính toán'!$C9,tblClassScores[Loại],'Tính toán'!AI$5)*'Thiết đặt'!K12,"") ->  | AJ9: 0.2225 | AK9: =SUMIFS('Thiết đặt'!E12:K12,'Tính toán'!AC9:AI9,">0") -> 0.25 | AL9: 89% | AM9: 3.33 | AN9: B+
C10: =IF('Thiết đặt'!C13="","",'Thiết đặt'!C13) -> Lập trình Nâng cao trong Java | D10: 75% | AC10: =IFERROR(AVERAGEIFS(tblClassScores[Điểm],tblClassScores[Lớp],'Tính toán'!$C10,tblClassScores[Loại],'Tính toán'!AC$5)*'Thiết đặt'!E13,"") ->  | AD10: =IFERROR(AVERAGEIFS(tblClassScores[Điểm],tblClassScores[Lớp],'Tính toán'!$C10,tblClassScores[Loại],'Tính toán'!AD$5)*'Thiết đặt'!F13,"") ->  | AE10: =IFERROR(AVERAGEIFS(tblClassScores[Điểm],tblClassScores[Lớp],'Tính toán'!$C10,tblClassScores[Loại],'Tính toán'!AE$5)*'Thiết đặt'!G13,"") ->  | AF10: =IFERROR(AVERAGEIFS(tblClassScores[Điểm],tblClassScores[Lớp],'Tính toán'!$C10,tblClassScores[Loại],'Tính toán'!AF$5)*'Thiết đặt'!H13,"") ->  | AG10: =IFERROR(AVERAGEIFS(tblClassScores[Điểm],tblClassScores[Lớp],'Tính toán'!$C10,tblClassScores[Loại],'Tính toán'!AG$5)*'Thiết đặt'!I13,"") -> 0.15 | AH10: =IFERROR(AVERAGEIFS(tblClassScores[Điểm],tblClassScores[Lớp],'Tính toán'!$C10,tblClassScores[Loại],'Tính toán'!AH$5)*'Thiết đặt'!J13,"") ->  | AI10: =IFERROR(AVERAGEIFS(tblClassScores[Điểm],tblClassScores[Lớp],'Tính toán'!$C10,tblClassScores[Loại],'Tính toán'!AI$5)*'Thiết đặt'!K13,"") ->  | AJ10: 0.15 | AK10: =SUMIFS('Thiết đặt'!E13:K13,'Tính toán'!AC10:AI10,">0") -> 0.2 | AL10: 75% | AM10: 2 | AN10: C
C11: =IF('Thiết đặt'!C14="","",'Thiết đặt'!C14) -> Tiếng Tây Ban Nha | D11: 50% | AC11: =IFERROR(AVERAGEIFS(tblClassScores[Điểm],tblClassScores[Lớp],'Tính toán'!$C11,tblClassScores[Loại],'Tính toán'!AC$5)*'Thiết đặt'!E14,"") -> 0.05 | AD11: =IFERROR(AVERAGEIFS(tblClassScores[Điểm],tblClassScores[Lớp],'Tính toán'!$C11,tblClassScores[Loại],'Tính toán'!AD$5)*'Thiết đặt'!F14,"") ->  | AE11: =IFERROR(AVERAGEIFS(tblClassScores[Điểm],tblClassScores[Lớp],'Tính toán'!$C11,tblClassScores[Loại],'Tính toán'!AE$5)*'Thiết đặt'!G14,"") ->  | AF11: =IFERROR(AVERAGEIFS(tblClassScores[Điểm],tblClassScores[Lớp],'Tính toán'!$C11,tblClassScores[Loại],'Tính toán'!AF$5)*'Thiết đặt'!H14,"") ->  | AG11: =IFERROR(AVERAGEIFS(tblClassScores[Điểm],tblClassScores[Lớp],'Tính toán'!$C11,tblClassScores[Loại],'Tính toán'!AG$5)*'Thiết đặt'!I14,"") ->  | AH11: =IFERROR(AVERAGEIFS(tblClassScores[Điểm],tblClassScores[Lớp],'Tính toán'!$C11,tblClassScores[Loại],'Tính toán'!AH$5)*'Thiết đặt'!J14,"") ->  | AI11: =IFERROR(AVERAGEIFS(tblClassScores[Điểm],tblClassScores[Lớp],'Tính toán'!$C11,tblClassScores[Loại],'Tính toán'!AI$5)*'Thiết đặt'!K14,"") ->  | AJ11: 0.05 | AK11: =SUMIFS('Thiết đặt'!E14:K14,'Tính toán'!AC11:AI11,">0") -> 0.1 | AL11: 50% | AM11: 0 | AN11: F
C12: =IF('Thiết đặt'!C15="","",'Thiết đặt'!C15) -> Bài luận | D12: 95% | AC12: =IFERROR(AVERAGEIFS(tblClassScores[Điểm],tblClassScores[Lớp],'Tính toán'!$C12,tblClassScores[Loại],'Tính toán'!AC$5)*'Thiết đặt'!E15,"") ->  | AD12: =IFERROR(AVERAGEIFS(tblClassScores[Điểm],tblClassScores[Lớp],'Tính toán'!$C12,tblClassScores[Loại],'Tính toán'!AD$5)*'Thiết đặt'!F15,"") -> 0.1425 | AE12: =IFERROR(AVERAGEIFS(tblClassScores[Điểm],tblClassScores[Lớp],'Tính toán'!$C12,tblClassScores[Loại],'Tính toán'!AE$5)*'Thiết đặt'!G15,"") ->  | AF12: =IFERROR(AVERAGEIFS(tblClassScores[Điểm],tblClassScores[Lớp],'Tính toán'!$C12,tblClassScores[Loại],'Tính toán'!AF$5)*'Thiết đặt'!H15,"") ->  | AG12: =IFERROR(AVERAGEIFS(tblClassScores[Điểm],tblClassScores[Lớp],'Tính toán'!$C12,tblClassScores[Loại],'Tính toán'!AG$5)*'Thiết đặt'!I15,"") ->  | AH12: =IFERROR(AVERAGEIFS(tblClassScores[Điểm],tblClassScores[Lớp],'Tính toán'!$C12,tblClassScores[Loại],'Tính toán'!AH$5)*'Thiết đặt'!J15,"") ->  | AI12: =IFERROR(AVERAGEIFS(tblClassScores[Điểm],tblClassScores[Lớp],'Tính toán'!$C12,tblClassScores[Loại],'Tính toán'!AI$5)*'Thiết đặt'!K15,"") ->  | AJ12: 0.1425 | AK12: =SUMIFS('Thiết đặt'!E15:K15,'Tính toán'!AC12:AI12,">0") -> 0.15 | AL12: 95% | AM12: 4 | AN12: A
C13: =IF('Thiết đặt'!C16="","",'Thiết đặt'!C16) ->  | AC13: =IFERROR(AVERAGEIFS(tblClassScores[Điểm],tblClassScores[Lớp],'Tính toán'!$C13,tblClassScores[Loại],'Tính toán'!AC$5)*'Thiết đặt'!#REF!,"") ->  | AD13: =IFERROR(AVERAGEIFS(tblClassScores[Điểm],tblClassScores[Lớp],'Tính toán'!$C13,tblClassScores[Loại],'Tính toán'!AD$5)*'Thiết đặt'!#REF!,"") ->  | AE13: =IFERROR(AVERAGEIFS(tblClassScores[Điểm],tblClassScores[Lớp],'Tính toán'!$C13,tblClassScores[Loại],'Tính toán'!AE$5)*'Thiết đặt'!#REF!,"") ->  | AF13: =IFERROR(AVERAGEIFS(tblClassScores[Điểm],tblClassScores[Lớp],'Tính toán'!$C13,tblClassScores[Loại],'Tính toán'!AF$5)*'Thiết đặt'!#REF!,"") ->  | AG13: =IFERROR(AVERAGEIFS(tblClassScores[Điểm],tblClassScores[Lớp],'Tính toán'!$C13,tblClassScores[Loại],'Tính toán'!AG$5)*'Thiết đặt'!#REF!,"") ->  | AH13: =IFERROR(AVERAGEIFS(tblClassScores[Điểm],tblClassScores[Lớp],'Tính toán'!$C13,tblClassScores[Loại],'Tính toán'!AH$5)*'Thiết đặt'!#REF!,"") ->  | AI13: =IFERROR(AVERAGEIFS(tblClassScores[Điểm],tblClassScores[Lớp],'Tính toán'!$C13,tblClassScores[Loại],'Tính toán'!AI$5)*'Thiết đặt'!#REF!,"") ->  | AJ13: 0 | AK13: =SUMIFS('Thiết đặt'!E16:K16,'Tính toán'!AC13:AI13,">0") -> 0
C14: =IF('Thiết đặt'!C17="","",'Thiết đặt'!C17) ->  | AC14: =IFERROR(AVERAGEIFS(tblClassScores[Điểm],tblClassScores[Lớp],'Tính toán'!$C14,tblClassScores[Loại],'Tính toán'!AC$5)*'Thiết đặt'!#REF!,"") ->  | AD14: =IFERROR(AVERAGEIFS(tblClassScores[Điểm],tblClassScores[Lớp],'Tính toán'!$C14,tblClassScores[Loại],'Tính toán'!AD$5)*'Thiết đặt'!#REF!,"") ->  | AE14: =IFERROR(AVERAGEIFS(tblClassScores[Điểm],tblClassScores[Lớp],'Tính toán'!$C14,tblClassScores[Loại],'Tính toán'!AE$5)*'Thiết đặt'!#REF!,"") ->  | AF14: =IFERROR(AVERAGEIFS(tblClassScores[Điểm],tblClassScores[Lớp],'Tính toán'!$C14,tblClassScores[Loại],'Tính toán'!AF$5)*'Thiết đặt'!#REF!,"") ->  | AG14: =IFERROR(AVERAGEIFS(tblClassScores[Điểm],tblClassScores[Lớp],'Tính toán'!$C14,tblClassScores[Loại],'Tính toán'!AG$5)*'Thiết đặt'!#REF!,"") ->  | AH14: =IFERROR(AVERAGEIFS(tblClassScores[Điểm],tblClassScores[Lớp],'Tính toán'!$C14,tblClassScores[Loại],'Tính toán'!AH$5)*'Thiết đặt'!#REF!,"") ->  | AI14: =IFERROR(AVERAGEIFS(tblClassScores[Điểm],tblClassScores[Lớp],'Tính toán'!$C14,tblClassScores[Loại],'Tính toán'!AI$5)*'Thiết đặt'!#REF!,"") ->  | AJ14: 0 | AK14: =SUMIFS('Thiết đặt'!E17:K17,'Tính toán'!AC14:AI14,">0") -> 0
C15: =IF('Thiết đặt'!C18="","",'Thiết đặt'!C18) ->  | AC15: =IFERROR(AVERAGEIFS(tblClassScores[Điểm],tblClassScores[Lớp],'Tính toán'!$C15,tblClassScores[Loại],'Tính toán'!AC$5)*'Thiết đặt'!#REF!,"") ->  | AD15: =IFERROR(AVERAGEIFS(tblClassScores[Điểm],tblClassScores[Lớp],'Tính toán'!$C15,tblClassScores[Loại],'Tính toán'!AD$5)*'Thiết đặt'!#REF!,"") ->  | AE15: =IFERROR(AVERAGEIFS(tblClassScores[Điểm],tblClassScores[Lớp],'Tính toán'!$C15,tblClassScores[Loại],'Tính toán'!AE$5)*'Thiết đặt'!#REF!,"") ->  | AF15: =IFERROR(AVERAGEIFS(tblClassScores[Điểm],tblClassScores[Lớp],'Tính toán'!$C15,tblClassScores[Loại],'Tính toán'!AF$5)*'Thiết đặt'!#REF!,"") ->  | AG15: =IFERROR(AVERAGEIFS(tblClassScores[Điểm],tblClassScores[Lớp],'Tính toán'!$C15,tblClassScores[Loại],'Tính toán'!AG$5)*'Thiết đặt'!#REF!,"") ->  | AH15: =IFERROR(AVERAGEIFS(tblClassScores[Điểm],tblClassScores[Lớp],'Tính toán'!$C15,tblClassScores[Loại],'Tính toán'!AH$5)*'Thiết đặt'!#REF!,"") ->  | AI15: =IFERROR(AVERAGEIFS(tblClassScores[Điểm],tblClassScores[Lớp],'Tính toán'!$C15,tblClassScores[Loại],'Tính toán'!AI$5)*'Thiết đặt'!#REF!,"") ->  | AJ15: 0 | AK15: =SUMIFS('Thiết đặt'!E18:K18,'Tính toán'!AC15:AI15,">0") -> 0
C16: =IF('Thiết đặt'!C19="","",'Thiết đặt'!C19) ->  | AC16: =IFERROR(AVERAGEIFS(tblClassScores[Điểm],tblClassScores[Lớp],'Tính toán'!$C16,tblClassScores[Loại],'Tính toán'!AC$5)*'Thiết đặt'!#REF!,"") ->  | AD16: =IFERROR(AVERAGEIFS(tblClassScores[Điểm],tblClassScores[Lớp],'Tính toán'!$C16,tblClassScores[Loại],'Tính toán'!AD$5)*'Thiết đặt'!#REF!,"") ->  | AE16: =IFERROR(AVERAGEIFS(tblClassScores[Điểm],tblClassScores[Lớp],'Tính toán'!$C16,tblClassScores[Loại],'Tính toán'!AE$5)*'Thiết đặt'!#REF!,"") ->  | AF16: =IFERROR(AVERAGEIFS(tblClassScores[Điểm],tblClassScores[Lớp],'Tính toán'!$C16,tblClassScores[Loại],'Tính toán'!AF$5)*'Thiết đặt'!#REF!,"") ->  | AG16: =IFERROR(AVERAGEIFS(tblClassScores[Điểm],tblClassScores[Lớp],'Tính toán'!$C16,tblClassScores[Loại],'Tính toán'!AG$5)*'Thiết đặt'!#REF!,"") ->  | AH16: =IFERROR(AVERAGEIFS(tblClassScores[Điểm],tblClassScores[Lớp],'Tính toán'!$C16,tblClassScores[Loại],'Tính toán'!AH$5)*'Thiết đặt'!#REF!,"") ->  | AI16: =IFERROR(AVERAGEIFS(tblClassScores[Điểm],tblClassScores[Lớp],'Tính toán'!$C16,tblClassScores[Loại],'Tính toán'!AI$5)*'Thiết đặt'!#REF!,"") ->  | AJ16: 0 | AK16: =SUMIFS('Thiết đặt'!E19:K19,'Tính toán'!AC16:AI16,">0") -> 0
C17: =IF('Thiết đặt'!C20="","",'Thiết đặt'!C20) ->  | AC17: =IFERROR(AVERAGEIFS(tblClassScores[Điểm],tblClassScores[Lớp],'Tính toán'!$C17,tblClassScores[Loại],'Tính toán'!AC$5)*'Thiết đặt'!#REF!,"") ->  | AD17: =IFERROR(AVERAGEIFS(tblClassScores[Điểm],tblClassScores[Lớp],'Tính toán'!$C17,tblClassScores[Loại],'Tính toán'!AD$5)*'Thiết đặt'!#REF!,"") ->  | AE17: =IFERROR(AVERAGEIFS(tblClassScores[Điểm],tblClassScores[Lớp],'Tính toán'!$C17,tblClassScores[Loại],'Tính toán'!AE$5)*'Thiết đặt'!#REF!,"") ->  | AF17: =IFERROR(AVERAGEIFS(tblClassScores[Điểm],tblClassScores[Lớp],'Tính toán'!$C17,tblClassScores[Loại],'Tính toán'!AF$5)*'Thiết đặt'!#REF!,"") ->  | AG17: =IFERROR(AVERAGEIFS(tblClassScores[Điểm],tblClassScores[Lớp],'Tính toán'!$C17,tblClassScores[Loại],'Tính toán'!AG$5)*'Thiết đặt'!#REF!,"") ->  | AH17: =IFERROR(AVERAGEIFS(tblClassScores[Điểm],tblClassScores[Lớp],'Tính toán'!$C17,tblClassScores[Loại],'Tính toán'!AH$5)*'Thiết đặt'!#REF!,"") ->  | AI17: =IFERROR(AVERAGEIFS(tblClassScores[Điểm],tblClassScores[Lớp],'Tính toán'!$C17,tblClassScores[Loại],'Tính toán'!AI$5)*'Thiết đặt'!#REF!,"") ->  | AJ17: 0 | AK17: =SUMIFS('Thiết đặt'!E20:K20,'Tính toán'!AC17:AI17,">0") -> 0
C18: =IF('Thiết đặt'!C21="","",'Thiết đặt'!C21) ->  | AC18: =IFERROR(AVERAGEIFS(tblClassScores[Điểm],tblClassScores[Lớp],'Tính toán'!$C18,tblClassScores[Loại],'Tính toán'!AC$5)*'Thiết đặt'!#REF!,"") ->  | AD18: =IFERROR(AVERAGEIFS(tblClassScores[Điểm],tblClassScores[Lớp],'Tính toán'!$C18,tblClassScores[Loại],'Tính toán'!AD$5)*'Thiết đặt'!#REF!,"") ->  | AE18: =IFERROR(AVERAGEIFS(tblClassScores[Điểm],tblClassScores[Lớp],'Tính toán'!$C18,tblClassScores[Loại],'Tính toán'!AE$5)*'Thiết đặt'!#REF!,"") ->  | AF18: =IFERROR(AVERAGEIFS(tblClassScores[Điểm],tblClassScores[Lớp],'Tính toán'!$C18,tblClassScores[Loại],'Tính toán'!AF$5)*'Thiết đặt'!#REF!,"") ->  | AG18: =IFERROR(AVERAGEIFS(tblClassScores[Điểm],tblClassScores[Lớp],'Tính toán'!$C18,tblClassScores[Loại],'Tính toán'!AG$5)*'Thiết đặt'!#REF!,"") ->  | AH18: =IFERROR(AVERAGEIFS(tblClassScores[Điểm],tblClassScores[Lớp],'Tính toán'!$C18,tblClassScores[Loại],'Tính toán'!AH$5)*'Thiết đặt'!#REF!,"") ->  | AI18: =IFERROR(AVERAGEIFS(tblClassScores[Điểm],tblClassScores[Lớp],'Tính toán'!$C18,tblClassScores[Loại],'Tính toán'!AI$5)*'Thiết đặt'!#REF!,"") ->  | AJ18: 0 | AK18: =SUMIFS('Thiết đặt'!E21:K21,'Tính toán'!AC18:AI18,">0") -> 0
C19: =IF('Thiết đặt'!C22="","",'Thiết đặt'!C22) ->  | AC19: =IFERROR(AVERAGEIFS(tblClassScores[Điểm],tblClassScores[Lớp],'Tính toán'!$C19,tblClassScores[Loại],'Tính toán'!AC$5)*'Thiết đặt'!#REF!,"") ->  | AD19: =IFERROR(AVERAGEIFS(tblClassScores[Điểm],tblClassScores[Lớp],'Tính toán'!$C19,tblClassScores[Loại],'Tính toán'!AD$5)*'Thiết đặt'!#REF!,"") ->  | AE19: =IFERROR(AVERAGEIFS(tblClassScores[Điểm],tblClassScores[Lớp],'Tính toán'!$C19,tblClassScores[Loại],'Tính toán'!AE$5)*'Thiết đặt'!#REF!,"") ->  | AF19: =IFERROR(AVERAGEIFS(tblClassScores[Điểm],tblClassScores[Lớp],'Tính toán'!$C19,tblClassScores[Loại],'Tính toán'!AF$5)*'Thiết đặt'!#REF!,"") ->  | AG19: =IFERROR(AVERAGEIFS(tblClassScores[Điểm],tblClassScores[Lớp],'Tính toán'!$C19,tblClassScores[Loại],'Tính toán'!AG$5)*'Thiết đặt'!#REF!,"") ->  | AH19: =IFERROR(AVERAGEIFS(tblClassScores[Điểm],tblClassScores[Lớp],'Tính toán'!$C19,tblClassScores[Loại],'Tính toán'!AH$5)*'Thiết đặt'!#REF!,"") ->  | AI19: =IFERROR(AVERAGEIFS(tblClassScores[Điểm],tblClassScores[Lớp],'Tính toán'!$C19,tblClassScores[Loại],'Tính toán'!AI$5)*'Thiết đặt'!#REF!,"") ->  | AJ19: 0 | AK19: =SUMIFS('Thiết đặt'!E22:K22,'Tính toán'!AC19:AI19,">0") -> 0
C20: =IF('Thiết đặt'!C23="","",'Thiết đặt'!C23) ->  | AC20: =IFERROR(AVERAGEIFS(tblClassScores[Điểm],tblClassScores[Lớp],'Tính toán'!$C20,tblClassScores[Loại],'Tính toán'!AC$5)*'Thiết đặt'!#REF!,"") ->  | AD20: =IFERROR(AVERAGEIFS(tblClassScores[Điểm],tblClassScores[Lớp],'Tính toán'!$C20,tblClassScores[Loại],'Tính toán'!AD$5)*'Thiết đặt'!#REF!,"") ->  | AE20: =IFERROR(AVERAGEIFS(tblClassScores[Điểm],tblClassScores[Lớp],'Tính toán'!$C20,tblClassScores[Loại],'Tính toán'!AE$5)*'Thiết đặt'!#REF!,"") ->  | AF20: =IFERROR(AVERAGEIFS(tblClassScores[Điểm],tblClassScores[Lớp],'Tính toán'!$C20,tblClassScores[Loại],'Tính toán'!AF$5)*'Thiết đặt'!#REF!,"") ->  | AG20: =IFERROR(AVERAGEIFS(tblClassScores[Điểm],tblClassScores[Lớp],'Tính toán'!$C20,tblClassScores[Loại],'Tính toán'!AG$5)*'Thiết đặt'!#REF!,"") ->  | AH20: =IFERROR(AVERAGEIFS(tblClassScores[Điểm],tblClassScores[Lớp],'Tính toán'!$C20,tblClassScores[Loại],'Tính toán'!AH$5)*'Thiết đặt'!#REF!,"") ->  | AI20: =IFERROR(AVERAGEIFS(tblClassScores[Điểm],tblClassScores[Lớp],'Tính toán'!$C20,tblClassScores[Loại],'Tính toán'!AI$5)*'Thiết đặt'!#REF!,"") ->  | AJ20: 0 | AK20: =SUMIFS('Thiết đặt'!E23:K23,'Tính toán'!AC20:AI20,">0") -> 0
C21: =IF('Thiết đặt'!C24="","",'Thiết đặt'!C24) ->  | AC21: =IFERROR(AVERAGEIFS(tblClassScores[Điểm],tblClassScores[Lớp],'Tính toán'!$C21,tblClassScores[Loại],'Tính toán'!AC$5)*'Thiết đặt'!#REF!,"") ->  | AD21: =IFERROR(AVERAGEIFS(tblClassScores[Điểm],tblClassScores[Lớp],'Tính toán'!$C21,tblClassScores[Loại],'Tính toán'!AD$5)*'Thiết đặt'!#REF!,"") ->  | AE21: =IFERROR(AVERAGEIFS(tblClassScores[Điểm],tblClassScores[Lớp],'Tính toán'!$C21,tblClassScores[Loại],'Tính toán'!AE$5)*'Thiết đặt'!#REF!,"") ->  | AF21: =IFERROR(AVERAGEIFS(tblClassScores[Điểm],tblClassScores[Lớp],'Tính toán'!$C21,tblClassScores[Loại],'Tính toán'!AF$5)*'Thiết đặt'!#REF!,"") ->  | AG21: =IFERROR(AVERAGEIFS(tblClassScores[Điểm],tblClassScores[Lớp],'Tính toán'!$C21,tblClassScores[Loại],'Tính toán'!AG$5)*'Thiết đặt'!#REF!,"") ->  | AH21: =IFERROR(AVERAGEIFS(tblClassScores[Điểm],tblClassScores[Lớp],'Tính toán'!$C21,tblClassScores[Loại],'Tính toán'!AH$5)*'Thiết đặt'!#REF!,"") ->  | AI21: =IFERROR(AVERAGEIFS(tblClassScores[Điểm],tblClassScores[Lớp],'Tính toán'!$C21,tblClassScores[Loại],'Tính toán'!AI$5)*'Thiết đặt'!#REF!,"") ->  | AJ21: 0 | AK21: =SUMIFS('Thiết đặt'!E24:K24,'Tính toán'!AC21:AI21,">0") -> 0
C22: =IF('Thiết đặt'!C25="","",'Thiết đặt'!C25) ->  | AC22: =IFERROR(AVERAGEIFS(tblClassScores[Điểm],tblClassScores[Lớp],'Tính toán'!$C22,tblClassScores[Loại],'Tính toán'!AC$5)*'Thiết đặt'!#REF!,"") ->  | AD22: =IFERROR(AVERAGEIFS(tblClassScores[Điểm],tblClassScores[Lớp],'Tính toán'!$C22,tblClassScores[Loại],'Tính toán'!AD$5)*'Thiết đặt'!#REF!,"") ->  | AE22: =IFERROR(AVERAGEIFS(tblClassScores[Điểm],tblClassScores[Lớp],'Tính toán'!$C22,tblClassScores[Loại],'Tính toán'!AE$5)*'Thiết đặt'!#REF!,"") ->  | AF22: =IFERROR(AVERAGEIFS(tblClassScores[Điểm],tblClassScores[Lớp],'Tính toán'!$C22,tblClassScores[Loại],'Tính toán'!AF$5)*'Thiết đặt'!#REF!,"") ->  | AG22: =IFERROR(AVERAGEIFS(tblClassScores[Điểm],tblClassScores[Lớp],'Tính toán'!$C22,tblClassScores[Loại],'Tính toán'!AG$5)*'Thiết đặt'!#REF!,"") ->  | AH22: =IFERROR(AVERAGEIFS(tblClassScores[Điểm],tblClassScores[Lớp],'Tính toán'!$C22,tblClassScores[Loại],'Tính toán'!AH$5)*'Thiết đặt'!#REF!,"") ->  | AI22: =IFERROR(AVERAGEIFS(tblClassScores[Điểm],tblClassScores[Lớp],'Tính toán'!$C22,tblClassScores[Loại],'Tính toán'!AI$5)*'Thiết đặt'!#REF!,"") ->  | AJ22: 0 | AK22: =SUMIFS('Thiết đặt'!E25:K25,'Tính toán'!AC22:AI22,">0") -> 0
C23: =IF('Thiết đặt'!C26="","",'Thiết đặt'!C26) ->  | AC23: =IFERROR(AVERAGEIFS(tblClassScores[Điểm],tblClassScores[Lớp],'Tính toán'!$C23,tblClassScores[Loại],'Tính toán'!AC$5)*'Thiết đặt'!#REF!,"") ->  | AD23: =IFERROR(AVERAGEIFS(tblClassScores[Điểm],tblClassScores[Lớp],'Tính toán'!$C23,tblClassScores[Loại],'Tính toán'!AD$5)*'Thiết đặt'!#REF!,"") ->  | AE23: =IFERROR(AVERAGEIFS(tblClassScores[Điểm],tblClassScores[Lớp],'Tính toán'!$C23,tblClassScores[Loại],'Tính toán'!AE$5)*'Thiết đặt'!#REF!,"") ->  | AF23: =IFERROR(AVERAGEIFS(tblClassScores[Điểm],tblClassScores[Lớp],'Tính toán'!$C23,tblClassScores[Loại],'Tính toán'!AF$5)*'Thiết đặt'!#REF!,"") ->  | AG23: =IFERROR(AVERAGEIFS(tblClassScores[Điểm],tblClassScores[Lớp],'Tính toán'!$C23,tblClassScores[Loại],'Tính toán'!AG$5)*'Thiết đặt'!#REF!,"") ->  | AH23: =IFERROR(AVERAGEIFS(tblClassScores[Điểm],tblClassScores[Lớp],'Tính toán'!$C23,tblClassScores[Loại],'Tính toán'!AH$5)*'Thiết đặt'!#REF!,"") ->  | AI23: =IFERROR(AVERAGEIFS(tblClassScores[Điểm],tblClassScores[Lớp],'Tính toán'!$C23,tblClassScores[Loại],'Tính toán'!AI$5)*'Thiết đặt'!#REF!,"") ->  | AJ23: 0 | AK23: =SUMIFS('Thiết đặt'!E26:K26,'Tính toán'!AC23:AI23,">0") -> 0
C24: =IF('Thiết đặt'!C27="","",'Thiết đặt'!C27) ->  | AC24: =IFERROR(AVERAGEIFS(tblClassScores[Điểm],tblClassScores[Lớp],'Tính toán'!$C24,tblClassScores[Loại],'Tính toán'!AC$5)*'Thiết đặt'!#REF!,"") ->  | AD24: =IFERROR(AVERAGEIFS(tblClassScores[Điểm],tblClassScores[Lớp],'Tính toán'!$C24,tblClassScores[Loại],'Tính toán'!AD$5)*'Thiết đặt'!#REF!,"") ->  | AE24: =IFERROR(AVERAGEIFS(tblClassScores[Điểm],tblClassScores[Lớp],'Tính toán'!$C24,tblClassScores[Loại],'Tính toán'!AE$5)*'Thiết đặt'!#REF!,"") ->  | AF24: =IFERROR(AVERAGEIFS(tblClassScores[Điểm],tblClassScores[Lớp],'Tính toán'!$C24,tblClassScores[Loại],'Tính toán'!AF$5)*'Thiết đặt'!#REF!,"") ->  | AG24: =IFERROR(AVERAGEIFS(tblClassScores[Điểm],tblClassScores[Lớp],'Tính toán'!$C24,tblClassScores[Loại],'Tính toán'!AG$5)*'Thiết đặt'!#REF!,"") ->  | AH24: =IFERROR(AVERAGEIFS(tblClassScores[Điểm],tblClassScores[Lớp],'Tính toán'!$C24,tblClassScores[Loại],'Tính toán'!AH$5)*'Thiết đặt'!#REF!,"") ->  | AI24: =IFERROR(AVERAGEIFS(tblClassScores[Điểm],tblClassScores[Lớp],'Tính toán'!$C24,tblClassScores[Loại],'Tính toán'!AI$5)*'Thiết đặt'!#REF!,"") ->  | AJ24: 0 | AK24: =SUMIFS('Thiết đặt'!E27:K27,'Tính toán'!AC24:AI24,">0") -> 0
C25: =IF('Thiết đặt'!C28="","",'Thiết đặt'!C28) ->  | AC25: =IFERROR(AVERAGEIFS(tblClassScores[Điểm],tblClassScores[Lớp],'Tính toán'!$C25,tblClassScores[Loại],'Tính toán'!AC$5)*'Thiết đặt'!#REF!,"") ->  | AD25: =IFERROR(AVERAGEIFS(tblClassScores[Điểm],tblClassScores[Lớp],'Tính toán'!$C25,tblClassScores[Loại],'Tính toán'!AD$5)*'Thiết đặt'!#REF!,"") ->  | AE25: =IFERROR(AVERAGEIFS(tblClassScores[Điểm],tblClassScores[Lớp],'Tính toán'!$C25,tblClassScores[Loại],'Tính toán'!AE$5)*'Thiết đặt'!#REF!,"") ->  | AF25: =IFERROR(AVERAGEIFS(tblClassScores[Điểm],tblClassScores[Lớp],'Tính toán'!$C25,tblClassScores[Loại],'Tính toán'!AF$5)*'Thiết đặt'!#REF!,"") ->  | AG25: =IFERROR(AVERAGEIFS(tblClassScores[Điểm],tblClassScores[Lớp],'Tính toán'!$C25,tblClassScores[Loại],'Tính toán'!AG$5)*'Thiết đặt'!#REF!,"") ->  | AH25: =IFERROR(AVERAGEIFS(tblClassScores[Điểm],tblClassScores[Lớp],'Tính toán'!$C25,tblClassScores[Loại],'Tính toán'!AH$5)*'Thiết đặt'!#REF!,"") ->  | AI25: =IFERROR(AVERAGEIFS(tblClassScores[Điểm],tblClassScores[Lớp],'Tính toán'!$C25,tblClassScores[Loại],'Tính toán'!AI$5)*'Thiết đặt'!#REF!,"") ->  | AJ25: 0 | AK25: =SUMIFS('Thiết đặt'!E28:K28,'Tính toán'!AC25:AI25,">0") -> 0
C26: =IF('Thiết đặt'!C29="","",'Thiết đặt'!C29) ->  | AC26: =IFERROR(AVERAGEIFS(tblClassScores[Điểm],tblClassScores[Lớp],'Tính toán'!$C26,tblClassScores[Loại],'Tính toán'!AC$5)*'Thiết đặt'!#REF!,"") ->  | AD26: =IFERROR(AVERAGEIFS(tblClassScores[Điểm],tblClassScores[Lớp],'Tính toán'!$C26,tblClassScores[Loại],'Tính toán'!AD$5)*'Thiết đặt'!#REF!,"") ->  | AE26: =IFERROR(AVERAGEIFS(tblClassScores[Điểm],tblClassScores[Lớp],'Tính toán'!$C26,tblClassScores[Loại],'Tính toán'!AE$5)*'Thiết đặt'!#REF!,"") ->  | AF26: =IFERROR(AVERAGEIFS(tblClassScores[Điểm],tblClassScores[Lớp],'Tính toán'!$C26,tblClassScores[Loại],'Tính toán'!AF$5)*'Thiết đặt'!#REF!,"") ->  | AG26: =IFERROR(AVERAGEIFS(tblClassScores[Điểm],tblClassScores[Lớp],'Tính toán'!$C26,tblClassScores[Loại],'Tính toán'!AG$5)*'Thiết đặt'!#REF!,"") ->  | AH26: =IFERROR(AVERAGEIFS(tblClassScores[Điểm],tblClassScores[Lớp],'Tính toán'!$C26,tblClassScores[Loại],'Tính toán'!AH$5)*'Thiết đặt'!#REF!,"") ->  | AI26: =IFERROR(AVERAGEIFS(tblClassScores[Điểm],tblClassScores[Lớp],'Tính toán'!$C26,tblClassScores[Loại],'Tính toán'!AI$5)*'Thiết đặt'!#REF!,"") ->  | AJ26: 0 | AK26: =SUMIFS('Thiết đặt'!E29:K29,'Tính toán'!AC26:AI26,">0") -> 0
C27: =IF('Thiết đặt'!C30="","",'Thiết đặt'!C30) ->  | AC27: =IFERROR(AVERAGEIFS(tblClassScores[Điểm],tblClassScores[Lớp],'Tính toán'!$C27,tblClassScores[Loại],'Tính toán'!AC$5)*'Thiết đặt'!#REF!,"") ->  | AD27: =IFERROR(AVERAGEIFS(tblClassScores[Điểm],tblClassScores[Lớp],'Tính toán'!$C27,tblClassScores[Loại],'Tính toán'!AD$5)*'Thiết đặt'!#REF!,"") ->  | AE27: =IFERROR(AVERAGEIFS(tblClassScores[Điểm],tblClassScores[Lớp],'Tính toán'!$C27,tblClassScores[Loại],'Tính toán'!AE$5)*'Thiết đặt'!#REF!,"") ->  | AF27: =IFERROR(AVERAGEIFS(tblClassScores[Điểm],tblClassScores[Lớp],'Tính toán'!$C27,tblClassScores[Loại],'Tính toán'!AF$5)*'Thiết đặt'!#REF!,"") ->  | AG27: =IFERROR(AVERAGEIFS(tblClassScores[Điểm],tblClassScores[Lớp],'Tính toán'!$C27,tblClassScores[Loại],'Tính toán'!AG$5)*'Thiết đặt'!#REF!,"") ->  | AH27: =IFERROR(AVERAGEIFS(tblClassScores[Điểm],tblClassScores[Lớp],'Tính toán'!$C27,tblClassScores[Loại],'Tính toán'!AH$5)*'Thiết đặt'!#REF!,"") ->  | AI27: =IFERROR(AVERAGEIFS(tblClassScores[Điểm],tblClassScores[Lớp],'Tính toán'!$C27,tblClassScores[Loại],'Tính toán'!AI$5)*'Thiết đặt'!#REF!,"") ->  | AJ27: 0 | AK27: =SUMIFS('Thiết đặt'!E30:K30,'Tính toán'!AC27:AI27,">0") -> 0
C28: =IF('Thiết đặt'!C31="","",'Thiết đặt'!C31) ->  | AC28: =IFERROR(AVERAGEIFS(tblClassScores[Điểm],tblClassScores[Lớp],'Tính toán'!$C28,tblClassScores[Loại],'Tính toán'!AC$5)*'Thiết đặt'!#REF!,"") ->  | AD28: =IFERROR(AVERAGEIFS(tblClassScores[Điểm],tblClassScores[Lớp],'Tính toán'!$C28,tblClassScores[Loại],'Tính toán'!AD$5)*'Thiết đặt'!#REF!,"") ->  | AE28: =IFERROR(AVERAGEIFS(tblClassScores[Điểm],tblClassScores[Lớp],'Tính toán'!$C28,tblClassScores[Loại],'Tính toán'!AE$5)*'Thiết đặt'!#REF!,"") ->  | AF28: =IFERROR(AVERAGEIFS(tblClassScores[Điểm],tblClassScores[Lớp],'Tính toán'!$C28,tblClassScores[Loại],'Tính toán'!AF$5)*'Thiết đặt'!#REF!,"") ->  | AG28: =IFERROR(AVERAGEIFS(tblClassScores[Điểm],tblClassScores[Lớp],'Tính toán'!$C28,tblClassScores[Loại],'Tính toán'!AG$5)*'Thiết đặt'!#REF!,"") ->  | AH28: =IFERROR(AVERAGEIFS(tblClassScores[Điểm],tblClassScores[Lớp],'Tính toán'!$C28,tblClassScores[Loại],'Tính toán'!AH$5)*'Thiết đặt'!#REF!,"") ->  | AI28: =IFERROR(AVERAGEIFS(tblClassScores[Điểm],tblClassScores[Lớp],'Tính toán'!$C28,tblClassScores[Loại],'Tính toán'!AI$5)*'Thiết đặt'!#REF!,"") ->  | AJ28: 0 | AK28: =SUMIFS('Thiết đặt'!E31:K31,'Tính toán'!AC28:AI28,">0") -> 0
C29: =IF('Thiết đặt'!C32="","",'Thiết đặt'!C32) ->  | AC29: =IFERROR(AVERAGEIFS(tblClassScores[Điểm],tblClassScores[Lớp],'Tính toán'!$C29,tblClassScores[Loại],'Tính toán'!AC$5)*'Thiết đặt'!#REF!,"") ->  | AD29: =IFERROR(AVERAGEIFS(tblClassScores[Điểm],tblClassScores[Lớp],'Tính toán'!$C29,tblClassScores[Loại],'Tính toán'!AD$5)*'Thiết đặt'!#REF!,"") ->  | AE29: =IFERROR(AVERAGEIFS(tblClassScores[Điểm],tblClassScores[Lớp],'Tính toán'!$C29,tblClassScores[Loại],'Tính toán'!AE$5)*'Thiết đặt'!#REF!,"") ->  | AF29: =IFERROR(AVERAGEIFS(tblClassScores[Điểm],tblClassScores[Lớp],'Tính toán'!$C29,tblClassScores[Loại],'Tính toán'!AF$5)*'Thiết đặt'!#REF!,"") ->  | AG29: =IFERROR(AVERAGEIFS(tblClassScores[Điểm],tblClassScores[Lớp],'Tính toán'!$C29,tblClassScores[Loại],'Tính toán'!AG$5)*'Thiết đặt'!#REF!,"") ->  | AH29: =IFERROR(AVERAGEIFS(tblClassScores[Điểm],tblClassScores[Lớp],'Tính toán'!$C29,tblClassScores[Loại],'Tính toán'!AH$5)*'Thiết đặt'!#REF!,"") ->  | AI29: =IFERROR(AVERAGEIFS(tblClassScores[Điểm],tblClassScores[Lớp],'Tính toán'!$C29,tblClassScores[Loại],'Tính toán'!AI$5)*'Thiết đặt'!#REF!,"") ->  | AJ29: 0 | AK29: =SUMIFS('Thiết đặt'!E32:K32,'Tính toán'!AC29:AI29,">0") -> 0
C30: =IF('Thiết đặt'!C33="","",'Thiết đặt'!C33) ->  | AC30: =IFERROR(AVERAGEIFS(tblClassScores[Điểm],tblClassScores[Lớp],'Tính toán'!$C30,tblClassScores[Loại],'Tính toán'!AC$5)*'Thiết đặt'!#REF!,"") ->  | AD30: =IFERROR(AVERAGEIFS(tblClassScores[Điểm],tblClassScores[Lớp],'Tính toán'!$C30,tblClassScores[Loại],'Tính toán'!AD$5)*'Thiết đặt'!#REF!,"") ->  | AE30: =IFERROR(AVERAGEIFS(tblClassScores[Điểm],tblClassScores[Lớp],'Tính toán'!$C30,tblClassScores[Loại],'Tính toán'!AE$5)*'Thiết đặt'!#REF!,"") ->  | AF30: =IFERROR(AVERAGEIFS(tblClassScores[Điểm],tblClassScores[Lớp],'Tính toán'!$C30,tblClassScores[Loại],'Tính toán'!AF$5)*'Thiết đặt'!#REF!,"") ->  | AG30: =IFERROR(AVERAGEIFS(tblClassScores[Điểm],tblClassScores[Lớp],'Tính toán'!$C30,tblClassScores[Loại],'Tính toán'!AG$5)*'Thiết đặt'!#REF!,"") ->  | AH30: =IFERROR(AVERAGEIFS(tblClassScores[Điểm],tblClassScores[Lớp],'Tính toán'!$C30,tblClassScores[Loại],'Tính toán'!AH$5)*'Thiết đặt'!#REF!,"") ->  | AI30: =IFERROR(AVERAGEIFS(tblClassScores[Điểm],tblClassScores[Lớp],'Tính toán'!$C30,tblClassScores[Loại],'Tính toán'!AI$5)*'Thiết đặt'!#REF!,"") ->  | AJ30: 0 | AK30: =SUMIFS('Thiết đặt'!E33:K33,'Tính toán'!AC30:AI30,">0") -> 0
B33: 1 | C33: ='Bảng Theo dõi Điểm số'!C4&COUNTIF('Bảng Theo dõi Điểm số'!$C$4:C4,'Bảng Theo dõi Điểm số'!C4) -> Tiếng Pháp Hiện đại1
B34: 2 | C34: ='Bảng Theo dõi Điểm số'!C5&COUNTIF('Bảng Theo dõi Điểm số'!$C$4:C5,'Bảng Theo dõi Điểm số'!C5) -> Lập trình Nâng cao trong Java1
B35: 3 | C35: ='Bảng Theo dõi Điểm số'!C6&COUNTIF('Bảng Theo dõi Điểm số'!$C$4:C6,'Bảng Theo dõi Điểm số'!C6) -> Tiếng Tây Ban Nha1
B36: 4 | C36: ='Bảng Theo dõi Điểm số'!C7&COUNTIF('Bảng Theo dõi Điểm số'!$C$4:C7,'Bảng Theo dõi Điểm số'!C7) -> Vật lý Lý thuyết1
B37: 5 | C37: ='Bảng Theo dõi Điểm số'!C8&COUNTIF('Bảng Theo dõi Điểm số'!$C$4:C8,'Bảng Theo dõi Điểm số'!C8) -> Tiếng Pháp Hiện đại2
B38: 6 | C38: ='Bảng Theo dõi Điểm số'!C9&COUNTIF('Bảng Theo dõi Điểm số'!$C$4:C9,'Bảng Theo dõi Điểm số'!C9) -> Tiếng Pháp Hiện đại3
B39: 7 | C39: ='Bảng Theo dõi Điểm số'!C10&COUNTIF('Bảng Theo dõi Điểm số'!$C$4:C10,'Bảng Theo dõi Điểm số'!C10) -> Bài luận1
B40: 8 | C40: ='Bảng Theo dõi Điểm số'!C11&COUNTIF('Bảng Theo dõi Điểm số'!$C$4:C11,'Bảng Theo dõi Điểm số'!C11) -> Toán học 11
B41: 9 | C41: ='Bảng Theo dõi Điểm số'!C12&COUNTIF('Bảng Theo dõi Điểm số'!$C$4:C12,'Bảng Theo dõi Điểm số'!C12) -> Toán học 21
B42: 10 | C42: ='Bảng Theo dõi Điểm số'!C13&COUNTIF('Bảng Theo dõi Điểm số'!$C$4:C14,'Bảng Theo dõi Điểm số'!C13) -> Toán học 12
B43: 11 | C43: ='Bảng Theo dõi Điểm số'!C14&COUNTIF('Bảng Theo dõi Điểm số'!$C$4:C14,'Bảng Theo dõi Điểm số'!C14) -> Toán học 22
B44: 12 | C44: ='Bảng Theo dõi Điểm số'!C15&COUNTIF('Bảng Theo dõi Điểm số'!$C$4:C15,'Bảng Theo dõi Điểm số'!C15) -> 0
B45: 13 | C45: ='Bảng Theo dõi Điểm số'!C16&COUNTIF('Bảng Theo dõi Điểm số'!$C$4:C16,'Bảng Theo dõi Điểm số'!C16) -> 0
B46: 14 | C46: ='Bảng Theo dõi Điểm số'!C17&COUNTIF('Bảng Theo dõi Điểm số'!$C$4:C17,'Bảng Theo dõi Điểm số'!C17) -> 0
B47: 15 | C47: ='Bảng Theo dõi Điểm số'!C18&COUNTIF('Bảng Theo dõi Điểm số'!$C$4:C18,'Bảng Theo dõi Điểm số'!C18) -> 0
B48: 16 | C48: ='Bảng Theo dõi Điểm số'!C19&COUNTIF('Bảng Theo dõi Điểm số'!$C$4:C19,'Bảng Theo dõi Điểm số'!C19) -> 0
B49: 17 | C49: ='Bảng Theo dõi Điểm số'!C20&COUNTIF('Bảng Theo dõi Điểm số'!$C$4:C20,'Bảng Theo dõi Điểm số'!C20) -> 0
B50: 18 | C50: ='Bảng Theo dõi Điểm số'!C21&COUNTIF('Bảng Theo dõi Điểm số'!$C$4:C21,'Bảng Theo dõi Điểm số'!C21) -> 0
B51: 19 | C51: ='Bảng Theo dõi Điểm số'!C22&COUNTIF('Bảng Theo dõi Điểm số'!$C$4:C22,'Bảng Theo dõi Điểm số'!C22) -> 0
B52: 20 | C52: ='Bảng Theo dõi Điểm số'!C23&COUNTIF('Bảng Theo dõi Điểm số'!$C$4:C23,'Bảng Theo dõi Điểm số'!C23) -> 0
B53: 21 | C53: ='Bảng Theo dõi Điểm số'!C24&COUNTIF('Bảng Theo dõi Điểm số'!$C$4:C24,'Bảng Theo dõi Điểm số'!C24) -> 0
B54: 22 | C54: ='Bảng Theo dõi Điểm số'!C25&COUNTIF('Bảng Theo dõi Điểm số'!$C$4:C25,'Bảng Theo dõi Điểm số'!C25) -> 0
B55: 23 | C55: ='Bảng Theo dõi Điểm số'!C26&COUNTIF('Bảng Theo dõi Điểm số'!$C$4:C26,'Bảng Theo dõi Điểm số'!C26) -> 0
B56: 24 | C56: ='Bảng Theo dõi Điểm số'!C27&COUNTIF('Bảng Theo dõi Điểm số'!$C$4:C27,'Bảng Theo dõi Điểm số'!C27) -> 0
B57: 25 | C57: ='Bảng Theo dõi Điểm số'!C28&COUNTIF('Bảng Theo dõi Điểm số'!$C$4:C28,'Bảng Theo dõi Điểm số'!C28) -> 0
B58: 26 | C58: ='Bảng Theo dõi Điểm số'!C29&COUNTIF('Bảng Theo dõi Điểm số'!$C$4:C29,'Bảng Theo dõi Điểm số'!C29) -> 0
B59: 27 | C59: ='Bảng Theo dõi Điểm số'!C30&COUNTIF('Bảng Theo dõi Điểm số'!$C$4:C30,'Bảng Theo dõi Điểm số'!C30) -> 0
B60: 28 | C60: ='Bảng Theo dõi Điểm số'!C31&COUNTIF('Bảng Theo dõi Điểm số'!$C$4:C31,'Bảng Theo dõi Điểm số'!C31) -> 0
B61: 29 | C61: ='Bảng Theo dõi Điểm số'!C32&COUNTIF('Bảng Theo dõi Điểm số'!$C$4:C32,'Bảng Theo dõi Điểm số'!C32) -> 0
B62: 30 | C62: ='Bảng Theo dõi Điểm số'!C33&COUNTIF('Bảng Theo dõi Điểm số'!$C$4:C33,'Bảng Theo dõi Điểm số'!C33) -> 0
B63: 31 | C63: ='Bảng Theo dõi Điểm số'!C34&COUNTIF('Bảng Theo dõi Điểm số'!$C$4:C34,'Bảng Theo dõi Điểm số'!C34) -> 0
B64: 32 | C64: ='Bảng Theo dõi Điểm số'!C35&COUNTIF('Bảng Theo dõi Điểm số'!$C$4:C35,'Bảng Theo dõi Điểm số'!C35) -> 0
B65: 33 | C65: ='Bảng Theo dõi Điểm số'!C36&COUNTIF('Bảng Theo dõi Điểm số'!$C$4:C36,'Bảng Theo dõi Điểm số'!C36) -> 0
B66: 34 | C66: ='Bảng Theo dõi Điểm số'!C37&COUNTIF('Bảng Theo dõi Điểm số'!$C$4:C37,'Bảng Theo dõi Điểm số'!C37) -> 0
B67: 35 | C67: ='Bảng Theo dõi Điểm số'!C38&COUNTIF('Bảng Theo dõi Điểm số'!$C$4:C38,'Bảng Theo dõi Điểm số'!C38) -> 0
B68: 36 | C68: ='Bảng Theo dõi Điểm số'!C39&COUNTIF('Bảng Theo dõi Điểm số'!$C$4:C39,'Bảng Theo dõi Điểm số'!C39) -> 0
B69: 37 | C69: ='Bảng Theo dõi Điểm số'!C40&COUNTIF('Bảng Theo dõi Điểm số'!$C$4:C40,'Bảng Theo dõi Điểm số'!C40) -> 0
B70: 38 | C70: ='Bảng Theo dõi Điểm số'!C41&COUNTIF('Bảng Theo dõi Điểm số'!$C$4:C41,'Bảng Theo dõi Điểm số'!C41) -> 0
B71: 39 | C71: ='Bảng Theo dõi Điểm số'!C42&COUNTIF('Bảng Theo dõi Điểm số'!$C$4:C42,'Bảng Theo dõi Điểm số'!C42) -> 0
B72: 40 | C72: ='Bảng Theo dõi Điểm số'!C43&COUNTIF('Bảng Theo dõi Điểm số'!$C$4:C43,'Bảng Theo dõi Điểm số'!C43) -> 0
B73: 41 | C73: ='Bảng Theo dõi Điểm số'!C44&COUNTIF('Bảng Theo dõi Điểm số'!$C$4:C44,'Bảng Theo dõi Điểm số'!C44) -> 0
B74: 42 | C74: ='Bảng Theo dõi Điểm số'!C45&COUNTIF('Bảng Theo dõi Điểm số'!$C$4:C45,'Bảng Theo dõi Điểm số'!C45) -> 0
B75: 43 | C75: ='Bảng Theo dõi Điểm số'!C46&COUNTIF('Bảng Theo dõi Điểm số'!$C$4:C46,'Bảng Theo dõi Điểm số'!C46) -> 0
B76: 44 | C76: ='Bảng Theo dõi Điểm số'!C47&COUNTIF('Bảng Theo dõi Điểm số'!$C$4:C47,'Bảng Theo dõi Điểm số'!C47) -> 0
B77: 45 | C77: ='Bảng Theo dõi Điểm số'!C48&COUNTIF('Bảng Theo dõi Điểm số'!$C$4:C48,'Bảng Theo dõi Điểm số'!C48) -> 0
B78: 46 | C78: ='Bảng Theo dõi Điểm số'!C49&COUNTIF('Bảng Theo dõi Điểm số'!$C$4:C49,'Bảng Theo dõi Điểm số'!C49) -> 0
B79: 47 | C79: ='Bảng Theo dõi Điểm số'!C50&COUNTIF('Bảng Theo dõi Điểm số'!$C$4:C50,'Bảng Theo dõi Điểm số'!C50) -> 0
B80: 48 | C80: ='Bảng Theo dõi Điểm số'!C51&COUNTIF('Bảng Theo dõi Điểm số'!$C$4:C51,'Bảng Theo dõi Điểm số'!C51) -> 0
B81: 49 | C81: ='Bảng Theo dõi Điểm số'!C52&COUNTIF('Bảng Theo dõi Điểm số'!$C$4:C52,'Bảng Theo dõi Điểm số'!C52) -> 0
B82: 50 | C82: ='Bảng Theo dõi Điểm số'!C53&COUNTIF('Bảng Theo dõi Điểm số'!$C$4:C53,'Bảng Theo dõi Điểm số'!C53) -> 0
B83: 51 | C83: ='Bảng Theo dõi Điểm số'!C54&COUNTIF('Bảng Theo dõi Điểm số'!$C$4:C54,'Bảng Theo dõi Điểm số'!C54) -> 0
B84: 52 | C84: ='Bảng Theo dõi Điểm số'!C55&COUNTIF('Bảng Theo dõi Điểm số'!$C$4:C55,'Bảng Theo dõi Điểm số'!C55) -> 0
B85: 53 | C85: ='Bảng Theo dõi Điểm số'!C56&COUNTIF('Bảng Theo dõi Điểm số'!$C$4:C56,'Bảng Theo dõi Điểm số'!C56) -> 0
B86: 54 | C86: ='Bảng Theo dõi Điểm số'!C57&COUNTIF('Bảng Theo dõi Điểm số'!$C$4:C57,'Bảng Theo dõi Điểm số'!C57) -> 0
B87: 55 | C87: ='Bảng Theo dõi Điểm số'!C58&COUNTIF('Bảng Theo dõi Điểm số'!$C$4:C58,'Bảng Theo dõi Điểm số'!C58) -> 0
B88: 56 | C88: ='Bảng Theo dõi Điểm số'!C59&COUNTIF('Bảng Theo dõi Điểm số'!$C$4:C59,'Bảng Theo dõi Điểm số'!C59) -> 0
B89: 57 | C89: ='Bảng Theo dõi Điểm số'!C60&COUNTIF('Bảng Theo dõi Điểm số'!$C$4:C60,'Bảng Theo dõi Điểm số'!C60) -> 0
B90: 58 | C90: ='Bảng Theo dõi Điểm số'!C61&COUNTIF('Bảng Theo dõi Điểm số'!$C$4:C61,'Bảng Theo dõi Điểm số'!C61) -> 0
B91: 59 | C91: ='Bảng Theo dõi Điểm số'!C62&COUNTIF('Bảng Theo dõi Điểm số'!$C$4:C62,'Bảng Theo dõi Điểm số'!C62) -> 0
B92: 60 | C92: ='Bảng Theo dõi Điểm số'!C63&COUNTIF('Bảng Theo dõi Điểm số'!$C$4:C63,'Bảng Theo dõi Điểm số'!C63) -> 0
B93: 61 | C93: ='Bảng Theo dõi Điểm số'!C64&COUNTIF('Bảng Theo dõi Điểm số'!$C$4:C64,'Bảng Theo dõi Điểm số'!C64) -> 0
B94: 62 | C94: ='Bảng Theo dõi Điểm số'!C65&COUNTIF('Bảng Theo dõi Điểm số'!$C$4:C65,'Bảng Theo dõi Điểm số'!C65) -> 0
B95: 63 | C95: ='Bảng Theo dõi Điểm số'!C66&COUNTIF('Bảng Theo dõi Điểm số'!$C$4:C66,'Bảng Theo dõi Điểm số'!C66) -> 0
B96: 64 | C96: ='Bảng Theo dõi Điểm số'!C67&COUNTIF('Bảng Theo dõi Điểm số'!$C$4:C67,'Bảng Theo dõi Điểm số'!C67) -> 0
B97: 65 | C97: ='Bảng Theo dõi Điểm số'!C68&COUNTIF('Bảng Theo dõi Điểm số'!$C$4:C68,'Bảng Theo dõi Điểm số'!C68) -> 0
B98: 66 | C98: ='Bảng Theo dõi Điểm số'!C69&COUNTIF('Bảng Theo dõi Điểm số'!$C$4:C69,'Bảng Theo dõi Điểm số'!C69) -> 0
B99: 67 | C99: ='Bảng Theo dõi Điểm số'!C70&COUNTIF('Bảng Theo dõi Điểm số'!$C$4:C70,'Bảng Theo dõi Điểm số'!C70) -> 0
B100: 68 | C100: ='Bảng Theo dõi Điểm số'!C71&COUNTIF('Bảng Theo dõi Điểm số'!$C$4:C71,'Bảng Theo dõi Điểm số'!C71) -> 0
B101: 69 | C101: ='Bảng Theo dõi Điểm số'!C72&COUNTIF('Bảng Theo dõi Điểm số'!$C$4:C72,'Bảng Theo dõi Điểm số'!C72) -> 0
B102: 70 | C102: ='Bảng Theo dõi Điểm số'!C73&COUNTIF('Bảng Theo dõi Điểm số'!$C$4:C73,'Bảng Theo dõi Điểm số'!C73) -> 0
B103: 71 | C103: ='Bảng Theo dõi Điểm số'!C74&COUNTIF('Bảng Theo dõi Điểm số'!$C$4:C74,'Bảng Theo dõi Điểm số'!C74) -> 0
B104: 72 | C104: ='Bảng Theo dõi Điểm số'!C75&COUNTIF('Bảng Theo dõi Điểm số'!$C$4:C75,'Bảng Theo dõi Điểm số'!C75) -> 0
B105: 73 | C105: ='Bảng Theo dõi Điểm số'!C76&COUNTIF('Bảng Theo dõi Điểm số'!$C$4:C76,'Bảng Theo dõi Điểm số'!C76) -> 0
B106: 74 | C106: ='Bảng Theo dõi Điểm số'!C77&COUNTIF('Bảng Theo dõi Điểm số'!$C$4:C77,'Bảng Theo dõi Điểm số'!C77) -> 0
B107: 75 | C107: ='Bảng Theo dõi Điểm số'!C78&COUNTIF('Bảng Theo dõi Điểm số'!$C$4:C78,'Bảng Theo dõi Điểm số'!C78) -> 0
B108: 76 | C108: ='Bảng Theo dõi Điểm số'!C79&COUNTIF('Bảng Theo dõi Điểm số'!$C$4:C79,'Bảng Theo dõi Điểm số'!C79) -> 0
B109: 77 | C109: ='Bảng Theo dõi Điểm số'!C80&COUNTIF('Bảng Theo dõi Điểm số'!$C$4:C80,'Bảng Theo dõi Điểm số'!C80) -> 0
B110: 78 | C110: ='Bảng Theo dõi Điểm số'!C81&COUNTIF('Bảng Theo dõi Điểm số'!$C$4:C81,'Bảng Theo dõi Điểm số'!C81) -> 0
B111: 79 | C111: ='Bảng Theo dõi Điểm số'!C82&COUNTIF('Bảng Theo dõi Điểm số'!$C$4:C82,'Bảng Theo dõi Điểm số'!C82) -> 0
B112: 80 | C112: ='Bảng Theo dõi Điểm số'!C83&COUNTIF('Bảng Theo dõi Điểm số'!$C$4:C83,'Bảng Theo dõi Điểm số'!C83) -> 0
B113: 81 | C113: ='Bảng Theo dõi Điểm số'!C84&COUNTIF('Bảng Theo dõi Điểm số'!$C$4:C84,'Bảng Theo dõi Điểm số'!C84) -> 0
B114: 82 | C114: ='Bảng Theo dõi Điểm số'!C85&COUNTIF('Bảng Theo dõi Điểm số'!$C$4:C85,'Bảng Theo dõi Điểm số'!C85) -> 0
B115: 83 | C115: ='Bảng Theo dõi Điểm số'!C86&COUNTIF('Bảng Theo dõi Điểm số'!$C$4:C86,'Bảng Theo dõi Điểm số'!C86) -> 0
B116: 84 | C116: ='Bảng Theo dõi Điểm số'!C87&COUNTIF('Bảng Theo dõi Điểm số'!$C$4:C87,'Bảng Theo dõi Điểm số'!C87) -> 0
B117: 85 | C117: ='Bảng Theo dõi Điểm số'!C88&COUNTIF('Bảng Theo dõi Điểm số'!$C$4:C88,'Bảng Theo dõi Điểm số'!C88) -> 0
B118: 86 | C118: ='Bảng Theo dõi Điểm số'!C89&COUNTIF('Bảng Theo dõi Điểm số'!$C$4:C89,'Bảng Theo dõi Điểm số'!C89) -> 0
B119: 87 | C119: ='Bảng Theo dõi Điểm số'!C90&COUNTIF('Bảng Theo dõi Điểm số'!$C$4:C90,'Bảng Theo dõi Điểm số'!C90) -> 0
B120: 88 | C120: ='Bảng Theo dõi Điểm số'!C91&COUNTIF('Bảng Theo dõi Điểm số'!$C$4:C91,'Bảng Theo dõi Điểm số'!C91) -> 0
B121: 89 | C121: ='Bảng Theo dõi Điểm số'!C92&COUNTIF('Bảng Theo dõi Điểm số'!$C$4:C92,'Bảng Theo dõi Điểm số'!C92) -> 0
B122: 90 | C122: ='Bảng Theo dõi Điểm số'!C93&COUNTIF('Bảng Theo dõi Điểm số'!$C$4:C93,'Bảng Theo dõi Điểm số'!C93) -> 0
B123: 91 | C123: ='Bảng Theo dõi Điểm số'!C94&COUNTIF('Bảng Theo dõi Điểm số'!$C$4:C94,'Bảng Theo dõi Điểm số'!C94) -> 0
B124: 92 | C124: ='Bảng Theo dõi Điểm số'!C95&COUNTIF('Bảng Theo dõi Điểm số'!$C$4:C95,'Bảng Theo dõi Điểm số'!C95) -> 0
B125: 93 | C125: ='Bảng Theo dõi Điểm số'!C96&COUNTIF('Bảng Theo dõi Điểm số'!$C$4:C96,'Bảng Theo dõi Điểm số'!C96) -> 0
B126: 94 | C126: ='Bảng Theo dõi Điểm số'!C97&COUNTIF('Bảng Theo dõi Điểm số'!$C$4:C97,'Bảng Theo dõi Điểm số'!C97) -> 0
B127: 95 | C127: ='Bảng Theo dõi Điểm số'!C98&COUNTIF('Bảng Theo dõi Điểm số'!$C$4:C98,'Bảng Theo dõi Điểm số'!C98) -> 0
B128: 96 | C128: ='Bảng Theo dõi Điểm số'!C99&COUNTIF('Bảng Theo dõi Điểm số'!$C$4:C99,'Bảng Theo dõi Điểm số'!C99) -> 0
B129: 97 | C129: ='Bảng Theo dõi Điểm số'!C100&COUNTIF('Bảng Theo dõi Điểm số'!$C$4:C100,'Bảng Theo dõi Điểm số'!C100) -> 0
B130: 98 | C130: ='Bảng Theo dõi Điểm số'!C101&COUNTIF('Bảng Theo dõi Điểm số'!$C$4:C101,'Bảng Theo dõi Điểm số'!C101) -> 0
B131: 99 | C131: ='Bảng Theo dõi Điểm số'!C102&COUNTIF('Bảng Theo dõi Điểm số'!$C$4:C102,'Bảng Theo dõi Điểm số'!C102) -> 0
B132: 100 | C132: ='Bảng Theo dõi Điểm số'!C103&COUNTIF('Bảng Theo dõi Điểm số'!$C$4:C103,'Bảng Theo dõi Điểm số'!C103) -> 0
B133: 101 | C133: ='Bảng Theo dõi Điểm số'!C104&COUNTIF('Bảng Theo dõi Điểm số'!$C$4:C104,'Bảng Theo dõi Điểm số'!C104) -> 0
B134: 102 | C134: ='Bảng Theo dõi Điểm số'!C105&COUNTIF('Bảng Theo dõi Điểm số'!$C$4:C105,'Bảng Theo dõi Điểm số'!C105) -> 0
B135: 103 | C135: ='Bảng Theo dõi Điểm số'!C106&COUNTIF('Bảng Theo dõi Điểm số'!$C$4:C106,'Bảng Theo dõi Điểm số'!C106) -> 0
B136: 104 | C136: ='Bảng Theo dõi Điểm số'!C107&COUNTIF('Bảng Theo dõi Điểm số'!$C$4:C107,'Bảng Theo dõi Điểm số'!C107) -> 0
B137: 105 | C137: ='Bảng Theo dõi Điểm số'!C108&COUNTIF('Bảng Theo dõi Điểm số'!$C$4:C108,'Bảng Theo dõi Điểm số'!C108) -> 0
B138: 106 | C138: ='Bảng Theo dõi Điểm số'!C109&COUNTIF('Bảng Theo dõi Điểm số'!$C$4:C109,'Bảng Theo dõi Điểm số'!C109) -> 0
B139: 107 | C139: ='Bảng Theo dõi Điểm số'!C110&COUNTIF('Bảng Theo dõi Điểm số'!$C$4:C110,'Bảng Theo dõi Điểm số'!C110) -> 0
B140: 108 | C140: ='Bảng Theo dõi Điểm số'!C111&COUNTIF('Bảng Theo dõi Điểm số'!$C$4:C111,'Bảng Theo dõi Điểm số'!C111) -> 0
B141: 109 | C141: ='Bảng Theo dõi Điểm số'!C112&COUNTIF('Bảng Theo dõi Điểm số'!$C$4:C112,'Bảng Theo dõi Điểm số'!C112) -> 0
B142: 110 | C142: ='Bảng Theo dõi Điểm số'!C113&COUNTIF('Bảng Theo dõi Điểm số'!$C$4:C113,'Bảng Theo dõi Điểm số'!C113) -> 0
B143: 111 | C143: ='Bảng Theo dõi Điểm số'!C114&COUNTIF('Bảng Theo dõi Điểm số'!$C$4:C114,'Bảng Theo dõi Điểm số'!C114) -> 0
B144: 112 | C144: ='Bảng Theo dõi Điểm số'!C115&COUNTIF('Bảng Theo dõi Điểm số'!$C$4:C115,'Bảng Theo dõi Điểm số'!C115) -> 0
B145: 113 | C145: ='Bảng Theo dõi Điểm số'!C116&COUNTIF('Bảng Theo dõi Điểm số'!$C$4:C116,'Bảng Theo dõi Điểm số'!C116) -> 0
B146: 114 | C146: ='Bảng Theo dõi Điểm số'!C117&COUNTIF('Bảng Theo dõi Điểm số'!$C$4:C117,'Bảng Theo dõi Điểm số'!C117) -> 0
B147: 115 | C147: ='Bảng Theo dõi Điểm số'!C118&COUNTIF('Bảng Theo dõi Điểm số'!$C$4:C118,'Bảng Theo dõi Điểm số'!C118) -> 0
B148: 116 | C148: ='Bảng Theo dõi Điểm số'!C119&COUNTIF('Bảng Theo dõi Điểm số'!$C$4:C119,'Bảng Theo dõi Điểm số'!C119) -> 0
B149: 117 | C149: ='Bảng Theo dõi Điểm số'!C120&COUNTIF('Bảng Theo dõi Điểm số'!$C$4:C120,'Bảng Theo dõi Điểm số'!C120) -> 0
B150: 118 | C150: ='Bảng Theo dõi Điểm số'!C121&COUNTIF('Bảng Theo dõi Điểm số'!$C$4:C121,'Bảng Theo dõi Điểm số'!C121) -> 0
B151: 119 | C151: ='Bảng Theo dõi Điểm số'!C122&COUNTIF('Bảng Theo dõi Điểm số'!$C$4:C122,'Bảng Theo dõi Điểm số'!C122) -> 0
B152: 120 | C152: ='Bảng Theo dõi Điểm số'!C123&COUNTIF('Bảng Theo dõi Điểm số'!$C$4:C123,'Bảng Theo dõi Điểm số'!C123) -> 0
B153: 121 | C153: ='Bảng Theo dõi Điểm số'!C124&COUNTIF('Bảng Theo dõi Điểm số'!$C$4:C124,'Bảng Theo dõi Điểm số'!C124) -> 0
B154: 122 | C154: ='Bảng Theo dõi Điểm số'!C125&COUNTIF('Bảng Theo dõi Điểm số'!$C$4:C125,'Bảng Theo dõi Điểm số'!C125) -> 0
B155: 123 | C155: ='Bảng Theo dõi Điểm số'!C126&COUNTIF('Bảng Theo dõi Điểm số'!$C$4:C126,'Bảng Theo dõi Điểm số'!C126) -> 0
B156: 124 | C156: ='Bảng Theo dõi Điểm số'!C127&COUNTIF('Bảng Theo dõi Điểm số'!$C$4:C127,'Bảng Theo dõi Điểm số'!C127) -> 0
B157: 125 | C157: ='Bảng Theo dõi Điểm số'!C128&COUNTIF('Bảng Theo dõi Điểm số'!$C$4:C128,'Bảng Theo dõi Điểm số'!C128) -> 0
B158: 126 | C158: ='Bảng Theo dõi Điểm số'!C129&COUNTIF('Bảng Theo dõi Điểm số'!$C$4:C129,'Bảng Theo dõi Điểm số'!C129) -> 0
B159: 127 | C159: ='Bảng Theo dõi Điểm số'!C130&COUNTIF('Bảng Theo dõi Điểm số'!$C$4:C130,'Bảng Theo dõi Điểm số'!C130) -> 0
B160: 128 | C160: ='Bảng Theo dõi Điểm số'!C131&COUNTIF('Bảng Theo dõi Điểm số'!$C$4:C131,'Bảng Theo dõi Điểm số'!C131) -> 0
B161: 129 | C161: ='Bảng Theo dõi Điểm số'!C132&COUNTIF('Bảng Theo dõi Điểm số'!$C$4:C132,'Bảng Theo dõi Điểm số'!C132) -> 0
B162: 130 | C162: ='Bảng Theo dõi Điểm số'!C133&COUNTIF('Bảng Theo dõi Điểm số'!$C$4:C133,'Bảng Theo dõi Điểm số'!C133) -> 0
B163: 131 | C163: ='Bảng Theo dõi Điểm số'!C134&COUNTIF('Bảng Theo dõi Điểm số'!$C$4:C134,'Bảng Theo dõi Điểm số'!C134) -> 0
B164: 132 | C164: ='Bảng Theo dõi Điểm số'!C135&COUNTIF('Bảng Theo dõi Điểm số'!$C$4:C135,'Bảng Theo dõi Điểm số'!C135) -> 0
B165: 133 | C165: ='Bảng Theo dõi Điểm số'!C136&COUNTIF('Bảng Theo dõi Điểm số'!$C$4:C136,'Bảng Theo dõi Điểm số'!C136) -> 0
B166: 134 | C166: ='Bảng Theo dõi Điểm số'!C137&COUNTIF('Bảng Theo dõi Điểm số'!$C$4:C137,'Bảng Theo dõi Điểm số'!C137) -> 0
B167: 135 | C167: ='Bảng Theo dõi Điểm số'!C138&COUNTIF('Bảng Theo dõi Điểm số'!$C$4:C138,'Bảng Theo dõi Điểm số'!C138) -> 0
B168: 136 | C168: ='Bảng Theo dõi Điểm số'!C139&COUNTIF('Bảng Theo dõi Điểm số'!$C$4:C139,'Bảng Theo dõi Điểm số'!C139) -> 0
B169: 137 | C169: ='Bảng Theo dõi Điểm số'!C140&COUNTIF('Bảng Theo dõi Điểm số'!$C$4:C140,'Bảng Theo dõi Điểm số'!C140) -> 0
B170: 138 | C170: ='Bảng Theo dõi Điểm số'!C141&COUNTIF('Bảng Theo dõi Điểm số'!$C$4:C141,'Bảng Theo dõi Điểm số'!C141) -> 0
B171: 139 | C171: ='Bảng Theo dõi Điểm số'!C142&COUNTIF('Bảng Theo dõi Điểm số'!$C$4:C142,'Bảng Theo dõi Điểm số'!C142) -> 0
B172: 140 | C172: ='Bảng Theo dõi Điểm số'!C143&COUNTIF('Bảng Theo dõi Điểm số'!$C$4:C143,'Bảng Theo dõi Điểm số'!C143) -> 0
B173: 141 | C173: ='Bảng Theo dõi Điểm số'!C144&COUNTIF('Bảng Theo dõi Điểm số'!$C$4:C144,'Bảng Theo dõi Điểm số'!C144) -> 0
B174: 142 | C174: ='Bảng Theo dõi Điểm số'!C145&COUNTIF('Bảng Theo dõi Điểm số'!$C$4:C145,'Bảng Theo dõi Điểm số'!C145) -> 0
B175: 143 | C175: ='Bảng Theo dõi Điểm số'!C146&COUNTIF('Bảng Theo dõi Điểm số'!$C$4:C146,'Bảng Theo dõi Điểm số'!C146) -> 0
B176: 144 | C176: ='Bảng Theo dõi Điểm số'!C147&COUNTIF('Bảng Theo dõi Điểm số'!$C$4:C147,'Bảng Theo dõi Điểm số'!C147) -> 0
B177: 145 | C177: ='Bảng Theo dõi Điểm số'!C148&COUNTIF('Bảng Theo dõi Điểm số'!$C$4:C148,'Bảng Theo dõi Điểm số'!C148) -> 0
B178: 146 | C178: ='Bảng Theo dõi Điểm số'!C149&COUNTIF('Bảng Theo dõi Điểm số'!$C$4:C149,'Bảng Theo dõi Điểm số'!C149) -> 0
B179: 147 | C179: ='Bảng Theo dõi Điểm số'!C150&COUNTIF('Bảng Theo dõi Điểm số'!$C$4:C150,'Bảng Theo dõi Điểm số'!C150) -> 0
B180: 148 | C180: ='Bảng Theo dõi Điểm số'!C151&COUNTIF('Bảng Theo dõi Điểm số'!$C$4:C151,'Bảng Theo dõi Điểm số'!C151) -> 0
B181: 149 | C181: ='Bảng Theo dõi Điểm số'!C152&COUNTIF('Bảng Theo dõi Điểm số'!$C$4:C152,'Bảng Theo dõi Điểm số'!C152) -> 0
B182: 150 | C182: ='Bảng Theo dõi Điểm số'!C153&COUNTIF('Bảng Theo dõi Điểm số'!$C$4:C153,'Bảng Theo dõi Điểm số'!C153) -> 0
B183: 151 | C183: ='Bảng Theo dõi Điểm số'!C154&COUNTIF('Bảng Theo dõi Điểm số'!$C$4:C154,'Bảng Theo dõi Điểm số'!C154) -> 0
B184: 152 | C184: ='Bảng Theo dõi Điểm số'!C155&COUNTIF('Bảng Theo dõi Điểm số'!$C$4:C155,'Bảng Theo dõi Điểm số'!C155) -> 0
B185: 153 | C185: ='Bảng Theo dõi Điểm số'!C156&COUNTIF('Bảng Theo dõi Điểm số'!$C$4:C156,'Bảng Theo dõi Điểm số'!C156) -> 0
B186: 154 | C186: ='Bảng Theo dõi Điểm số'!C157&COUNTIF('Bảng Theo dõi Điểm số'!$C$4:C157,'Bảng Theo dõi Điểm số'!C157) -> 0
B187: 155 | C187: ='Bảng Theo dõi Điểm số'!C158&COUNTIF('Bảng Theo dõi Điểm số'!$C$4:C158,'Bảng Theo dõi Điểm số'!C158) -> 0
B188: 156 | C188: ='Bảng Theo dõi Điểm số'!C159&COUNTIF('Bảng Theo dõi Điểm số'!$C$4:C159,'Bảng Theo dõi Điểm số'!C159) -> 0
B189: 157 | C189: ='Bảng Theo dõi Điểm số'!C160&COUNTIF('Bảng Theo dõi Điểm số'!$C$4:C160,'Bảng Theo dõi Điểm số'!C160) -> 0
B190: 158 | C190: ='Bảng Theo dõi Điểm số'!C161&COUNTIF('Bảng Theo dõi Điểm số'!$C$4:C161,'Bảng Theo dõi Điểm số'!C161) -> 0
B191: 159 | C191: ='Bảng Theo dõi Điểm số'!C162&COUNTIF('Bảng Theo dõi Điểm số'!$C$4:C162,'Bảng Theo dõi Điểm số'!C162) -> 0
B192: 160 | C192: ='Bảng Theo dõi Điểm số'!C163&COUNTIF('Bảng Theo dõi Điểm số'!$C$4:C163,'Bảng Theo dõi Điểm số'!C163) -> 0
B193: 161 | C193: ='Bảng Theo dõi Điểm số'!C164&COUNTIF('Bảng Theo dõi Điểm số'!$C$4:C164,'Bảng Theo dõi Điểm số'!C164) -> 0
B194: 162 | C194: ='Bảng Theo dõi Điểm số'!C165&COUNTIF('Bảng Theo dõi Điểm số'!$C$4:C165,'Bảng Theo dõi Điểm số'!C165) -> 0
B195: 163 | C195: ='Bảng Theo dõi Điểm số'!C166&COUNTIF('Bảng Theo dõi Điểm số'!$C$4:C166,'Bảng Theo dõi Điểm số'!C166) -> 0
B196: 164 | C196: ='Bảng Theo dõi Điểm số'!C167&COUNTIF('Bảng Theo dõi Điểm số'!$C$4:C167,'Bảng Theo dõi Điểm số'!C167) -> 0
B197: 165 | C197: ='Bảng Theo dõi Điểm số'!C168&COUNTIF('Bảng Theo dõi Điểm số'!$C$4:C168,'Bảng Theo dõi Điểm số'!C168) -> 0
B198: 166 | C198: ='Bảng Theo dõi Điểm số'!C169&COUNTIF('Bảng Theo dõi Điểm số'!$C$4:C169,'Bảng Theo dõi Điểm số'!C169) -> 0
B199: 167 | C199: ='Bảng Theo dõi Điểm số'!C170&COUNTIF('Bảng Theo dõi Điểm số'!$C$4:C170,'Bảng Theo dõi Điểm số'!C170) -> 0
B200: 168 | C200: ='Bảng Theo dõi Điểm số'!C171&COUNTIF('Bảng Theo dõi Điểm số'!$C$4:C171,'Bảng Theo dõi Điểm số'!C171) -> 0
B201: 169 | C201: ='Bảng Theo dõi Điểm số'!C172&COUNTIF('Bảng Theo dõi Điểm số'!$C$4:C172,'Bảng Theo dõi Điểm số'!C172) -> 0
B202: 170 | C202: ='Bảng Theo dõi Điểm số'!C173&COUNTIF('Bảng Theo dõi Điểm số'!$C$4:C173,'Bảng Theo dõi Điểm số'!C173) -> 0
B203: 171 | C203: ='Bảng Theo dõi Điểm số'!C174&COUNTIF('Bảng Theo dõi Điểm số'!$C$4:C174,'Bảng Theo dõi Điểm số'!C174) -> 0
... 454 more rows
